Workbook

Sheet прил.1
A6: Прогнозируемые доходы бюджета Черемховского районного муниципального образования на 2012 год
A9: Наименование | B9: Код бюджетной классификации | D9: Прогноз на 2012 год | F9: Прогноз на 2012 год | G9: отклонение
B10: главного администратора доходов | C10: доходов районного бюджета
A11: НАЛОГОВЫЕ И НЕНАЛОГОВЫЕ ДОХОДЫ | B11: 000 | C11: 1 00 00000 00 0000 000 | D11: =D12+D17+D26+D30+D33+D38+D40+D47+D52+D61 -> 96019.3486 | E11: =E12+E17+E26+E30+E33+E38+E40+E47+E52+E61 -> 4360.0616 | F11: =F12+F17+F26+F30+F33+F38+F40+F47+F52+F61 -> 102843.3 | G11: =F11-D11 -> 6823.9514
A12: НАЛОГИ НА ПРИБЫЛЬ, ДОХОДЫ | B12: 182 | C12: 1 01 00000 00 0000 000 | D12: =D13+D14+D15+D16 -> 47100 | E12: =E13+E14+E15+E16 -> 124 | F12: 51800 | G12: =F12-D12 -> 4700
A13: Налог на доходы физических лиц с доходов, источником которых является налоговый агент, за исключением доходов, в отношении которых исчисление и уплата налога осуществляются в соответствии со статьями 227,227¹ и 228 Налогового кодекса Российской Федерации | B13: 182 | C13: 1 01 02010 01 0000 110 | D13: =46926 -> 46926 | F13: 51600 | G13: =F13-D13 -> 4674
A14: Налог на доходы физических лиц с доходов, полученных от осуществления деятельности физическими лицами,зарегистрированными в качестве индивидуальных предпринимателей,нотариусов,занимающихся частной практикой,адвокатов,учредивших адвокатские кабинеты и других лиц, занимающихся частной практикой | B14: 182 | C14: 1 01 02020 01 0000 110 | D14: 50 | E14: 0 | F14: 50 | G14: 0
A15: Налог на доходы физических лиц с доходов, полученных физическими лицами, не являющимися налоговыми резидентами | B15: 182 | C15: 1 01 02030 01 0000 110 | D15: 124 | E15: 124 | F15: 147 | G15: 23
A16: Налог на доходы физических лиц в виде фиксированных авансовых платежей с доходов, полученных физическими лицами, являющимися иностанными гражданами, осуществляющими трудовую деятельность по найму у физических лиц на основании патента | B16: 182 | C16: 1 01 02040 01 0000 110 | D16: 0 | F16: 3 | G16: 3
A17: НАЛОГИ НА СОВОКУПНЫЙ ДОХОД | B17: 182 | C17: 1 05 00000 00 0000 000 | D17: =D18+D24+D25 -> 7310 | E17: =E18+E24+E25 -> 1281 | F17: =F18+F24+F25 -> 8784 | G17: 1474
A18: Налог, взимаемый в связи с применением упрощенной системы налогообложения | B18: 182 | C18: 1 05 01000 00 0000 110 | D18: =D19+D20+D21+D22+D23 -> 3229 | E18: =E19+E20+E21+E22+E23 -> 869 | F18: =F19+F20+F21+F22+F23 -> 3894 | G18: 665
A19: Налог, взимаемый с налогоплательщиков, выбравших в качестве объекта налогообложения доходы | B19: 182 | C19: 1 05 01010 01 0000 110 | D19: 1240 | F19: 1550 | G19: 310
A20: Налог, взимаемый с налогоплательщиков, выбравших в качестве объекта налогообложения доходы, уменьшенные на величину расходов | B20: 182 | C20: 1 05 01020 01 0000 110 | D20: 1320 | E20: 200 | F20: 1500 | G20: 180
A21: Налог, взимаемый с налогоплательщиков, выбравших в качестве объекта налогообложения доходы, уменьшенные на величину расходов (за налоговые периоды, истекшие до 1 января 2011 года) | B21: 182 | C21: 1 05 01022 01 0000 110 | D21: 60 | E21: 60 | F21: 85 | G21: 25
A22: Налог, взимаемый в виде стоимости патента в связи с применением упрощенной системы налогооблажения | B22: 182 | C22: 1 05 01041 02 0000 110 | D22: 9 | E22: 9 | F22: 9 | G22: 0
A23: Минимальный налог, зачисляемый в бюджеты субьектов РФ | B23: 182 | C23: 1 05 01050 01 0000 110 | D23: 600 | E23: 600 | F23: 750 | G23: 150
A24: Единый налог на вмененный доход для отдельных видов деятельности | B24: 182 | C24: 1 05 02000 02 0000 110 | D24: 4000 | E24: 406 | F24: 4800 | G24: 800
A25: Единый сельскохозяйственный налог | B25: 182 | C25: 1 05 03000 01 0000 110 | D25: 81 | E25: 6 | F25: 90 | G25: 9
A26: ГОСУДАРСТВЕННАЯ ПОШЛИНА | B26: 000 | C26: 1 08 00000 00 0000 000 | D26: =D27+D28+D29 -> 1132 | E26: =E27+E28+E29 -> 522 | F26: =F27+F28+F29 -> 1122 | G26: -10
A27: Государственная пошлина по делам, рассматриваемым в судах общей юрисдикции, мировыми судьями (за исключением Верховного Суда Российской Федерации) | B27: 182 | C27: 1 08 03010 01 0000 110 | D27: 290 | F27: 230 | G27: -60
A28: Государственная пошлина за совершение действий, связанных с лицензированием, с проведением аттестации в случаях, если такая аттестация предусмотрена законодательством Российской Федерации, зачисляемая в бюджеты муниципальных районов | B28: 917 | C28: 1 08 07084 01 1000 110 | D28: 842 | E28: 522 | F28: 892 | G28: 50
A29: Государственная пошлина за государственную регистрацию транспортных средств и иные юридически значимые действия, связанные с изменениями и выдачей документов на транспортные средства, выдачей регистрационных знаков, приемом квалификационных экзаменов на получение права на управление транспортными средствами | B29: 000 | C29: 1 08 07141 01 0000 110 | D29: 0 | F29: 0 | G29: 0
A30: ЗАДОЛЖЕННОСТЬ И ПЕРЕРАСЧЕТЫ ПО ОТМЕНЕННЫМ НАЛОГАМ, СБОРАМ И ИНЫМ ОБЯЗАТЕЛЬНЫМ ПЛАТЕЖАМ | B30: 182 | C30: 1 09 00000 00 0000 000 | D30: =D31+D32 -> 1 | E30: =E31+E32 -> -18 | F30: =F31+F32 -> 10 | G30: 9
A31: Налог на имущество предприятий | B31: 182 | C31: 1 09 04010 02 0000 110 | D31: 1 | E31: -9 | F31: 0.2 | G31: -0.8
A32: Налог с продаж | B32: 182 | C32: 1 09 06010 02 0000 110 | D32: 0 | E32: -9 | F32: 9.8 | G32: 9.8
A33: ДОХОДЫ ОТ ИСПОЛЬЗОВАНИЯ ИМУЩЕСТВА, НАХОДЯЩЕГОСЯ В ГОСУДАРСТВЕННОЙ И МУНИЦИПАЛЬНОЙ СОБСТВЕННОСТИ | B33: 000 | C33: 1 11 00000 00 0000 000 | D33: =D34+D37 -> 10897.0486 | E33: =E34+E37 -> 1857.0616 | F33: =F34+F37 -> 12600 | G33: 1702.9514
A34: Доходы, получаемые в виде арендной платы за земельные участки,государственная собственность на которые не разграничена и которые расположеныв границах поселений, а также средства от продажи права на заключение договоров аренды указанных земельных участков | B34: 000 | C34: 1 11 05013 10 0000 120 | D34: =D35+D36 -> 7397.0486 | E34: =E35+E36 -> 1257.0616 | F34: =F35+F36 -> 8800 | G34: 1402.9514
A35: Доходы, получаемые в виде арендной платы за земельные участки, государственная собственность на которые не разграничена и которые расположены в границах поселений, а также средства от продажи права на заключение договоров аренды указанных земельных участков | B35: 913 | C35: 1 11 05013 10 0000 120 | D35: 6647 | E35: 1257 | F35: 8000 | G35: 1353
A36: Доходы, получаемые в виде арендной платы за земельные участки,государственная собственность на которые не разграничена и которые расположеныв границах поселений, а также средства от продажи права на заключение договоров аренды указанных земельных участков | B36: 950 | C36: 1 11 05013 10 0000 120 | D36: 750.0486 | E36: 0.0616 | F36: 800 | G36: 49.9514
A37: Доходы от сдачи в аренду имущества, находящегося в оперативном управлении органов управления муниципальных районов и созданных ими учреждений (за исключением имущества муниципальных автономных учреждений) | B37: 913 | C37: 1 11 05035 05 0000 120 | D37: 3500 | E37: 600 | F37: 3800 | G37: 300
A38: ПЛАТЕЖИ ПРИ ПОЛЬЗОВАНИИ ПРИРОДНЫМИ РЕСУРСАМИ | B38: 048 | C38: 1 12 00000 00 0000 000 | D38: =D39 -> 180 | F38: =F39 -> 170 | G38: -10
A39: Плата за негативное воздействие на окружающую среду | B39: 048 | C39: 1 12 01000 01 0000 120 | D39: 180 | F39: 170 | G39: -10
A40: ДОХОДЫ ОТ ОКАЗАНИЯ ПЛАТНЫХ УСЛУГ И КОМПЕНСАЦИИ ЗАТРАТ ГОСУДАРСТВА | B40: 000 | C40: 1 13 00000 00 0000 000 | D40: =D41 -> 7321.5 | E40: =E41 -> 0 | F40: =F41 -> 6351.5 | G40: -970
A41: Прочие доходы от оказания платных услуг (работ) получателями средств бюджетов муниципальных районов | B41: 000 | C41: 1 13 01000 00 0000 130 | D41: =D42+D43+D44+D45+D46 -> 7321.5 | E41: =E42+E43+E44+E45+E46 -> 0 | F41: =F42+F43+F44+F45+F46 -> 6351.5 | G41: -970
A42: Прочие доходы от оказания платных услуг (работ) получателями средств бюджетов муниципальных районов | B42: 907 | C42: 113 01995 05 0000 130 | D42: 6972 | F42: 6000 | G42: -972
A43: Прочие доходы от оказания платных услуг (работ) получателями средств бюджетов муниципальных районов (МКУК МКЦ АЧРМО) | B43: 919 | C43: 113 01995 05 0000 130 | D43: 85 | F43: 85 | G43: 0
A44: Прочие доходы от оказания платных услуг (работ) получателями средств бюджетов муниципальных районов (МКУК РИК МУЗЕЙ) | B44: 920 | C44: 113 01995 05 0000 130 | D44: =20 -> 20 | E44: 0 | F44: 22 | G44: 2
A45: Прочие доходы от оказания платных услуг (работ) получателями средств бюджетов муниципальных районов (МКУК МБЧР) | B45: 921 | C45: 113 01995 05 0000 130 | D45: 24.5 | F45: 24.5 | G45: 0
A46: Прочие доходы от оказания платных услуг (работ) получателями средств бюджетов муниципальных районов (МКОУ ДОД ДШИ) | B46: 922 | C46: 113 01995 05 0000 130 | D46: 220 | F46: 220 | G46: 0
A47: ДОХОДЫ ОТ ПРОДАЖИ МАТЕРИАЛЬНЫХ И НЕМАТЕРИАЛЬНЫХ АКТИВОВ | B47: 913 | C47: 1 14 00000 00 0000 000 | D47: =D48+D50 -> 20716.8 | E47: =E48+E50 -> 594 | F47: =F48+F50 -> 20846.8 | G47: 130
A48: Доходы от реализации имущества, находящегося в государственной и муниципальной собственности (за исключением имущества автономных учреждений, а также имущества государственных и муниципальных унитарных предприятий, в том числе казенных) | B48: 913 | C48: 1 14 02000 00 0000 000 | D48: =D49 -> 20246.8 | E48: =E49 -> 424 | F48: =F49 -> 20246.8 | G48: 0
A49: Доходы от реализации иного имущества, находящегося в собственности муниципальных районов (за исключением имущества муниципальных автономных учреждений, а также имущества муниципальных унитарных предприятий, в том числе казенных), в части реализации основных средств по указанному имуществу | B49: 913 | C49: 1 14 02053 05 0000 410 | D49: 20246.8 | E49: 424 | F49: 20246.8 | G49: 0
A50: Доходы от продажи земельных участков, находящихся в государственной и муниципальной собственности (за исключением земельных участков автономных учреждений) | B50: 913 | C50: 1 14 06000 00 0000 430 | D50: =D51 -> 470 | E50: =E51 -> 170 | F50: =F51 -> 600 | G50: 130
A51: Доходы от продажи земельных участков, государственная собственность на которые не разграничена и которые расположены в границах поселений | B51: 913 | C51: 1 14 06013 10 0000 430 | D51: 470 | E51: 170 | F51: 600 | G51: 130
A52: ШТРАФЫ, САНКЦИИ, ВОЗМЕЩЕНИЕ УЩЕРБА | B52: 000 | C52: 1 16 00000 00 0000 000 | D52: =D53+D54+D55+D56+D57+D58+D60 -> 553 | E52: =E53+E54+E55+E56+E57+E58+E60 -> 0 | F52: =F53+F54+F55+F56+F57+F58+F60+F59 -> 628 | G52: 75
A53: Денежные взыскания (штрафы) за нарушение законодательства о налогах и сборах | B53: 182 | C53: 1 16 03000 01 0000 140 | D53: 37 | F53: 47 | G53: 10
A54: Денежные взыскания (штрафы) за нарушение законодательства о применении контрольно-кассовой техники при осуществлении наличных денежных расчетов и (или) расчетов с использованием платежных карт | B54: 182 | C54: 1 16 06000 01 0000 140 | D54: 0 | E54: -11 | F54: 0 | G54: 0
A55: Денежные взыскания (штрафы) за административные правонарушения в области государственного регулирования производства и оборота этилового спирта, алкогольной и спиртосодержащей продукции | B55: 000 | C55: 1 16 08000 01 0000 140 | D55: 0 | E55: -1 | F55: 3.5 | G55: 3.5
A56: Денежные взыскания (штрафы) за нарушение законодательства о недрах, об особо охраняемых природных территориях, об охране и использовании животного мира, об экологической экспертизе, в области охраны окружающей среды, земельного законодательства | B56: 000 | C56: 1 16 25000 01 0000 140 | D56: 45 | E56: 8 | F56: 63 | G56: 18
A57: Денежные взыскания (штрафы) за нарушение законодательства в области обеспечения санитарно- эпидемиологического благополучия человека и законодательства в сфере защиты прав потребителей | B57: 141 | C57: 1 16 28000 01 0000 140 | D57: 0 | E57: -12 | F57: 0 | G57: 0
A58: Денежные взыскания (штрафы) за административные правонарушения в области дорожного движения | B58: 188 | C58: 1 16 30014 01 0000 140 | D58: 28 | E58: 28 | F58: 29 | G58: 1
A59: Денежные взыскания (штрафы) за нарушение законодательства РФ об административных правонарушениях, предусмотренные статьей 20.25 Кодекса РФ об административных правонарушений | B59: 188 | C59: 1 16 43000 01 0000 140 | D59: 0 | F59: 2 | G59: 2
A60: Прочие поступления от денежных взысканий (штрафов) и иных сумм в возмещение ущерба, зачисляемые в бюджеты муниципальных районов | B60: 000 | C60: 1 16 90050 05 0000 140 | D60: 443 | E60: -12 | F60: 483.5 | G60: 40.5
A61: ПРОЧИЕ НЕНАЛОГОВЫЕ ДОХОДЫ | B61: 000 | C61: 1 17 00000 00 0000 000 | D61: =D62+D63 -> 808 | F61: =F62+F63 -> 531 | G61: -277
A62: Невыясненные поступления | B62: 000 | C62: 1 17 01000 00 0000 180 | D62: 0 | F62: 0 | G62: 0
A63: Прочие неналоговые доходы | B63: 000 | C63: 1 17 05000 00 0000 180 | D63: 808 | F63: 531 | G63: -277
A64: БЕЗВОЗМЕЗДНЫЕ ПОСТУПЛЕНИЯ | B64: 000 | C64: 2 00 00000 00 0000 000 | D64: =D65+D120+D122 -> 552756.2514 | E64: =E65+E120+E122 ->  | F64: =F65+F120+F122 -> 551855.1514 | G64: -901.1
A65: БЕЗВОЗМЕЗДНЫЕ ПОСТУПЛЕНИЯ ИЗ ДРУГИХ БЮДЖЕТОВ БЮДЖЕТНОЙ СИСТЕМЫ РФ | B65: 000 | C65: 2 02 00000 00 0000 151 | D65: =D66+D69+D87+D105 -> 548097.4514 | E65: =E66+E69+E87+E105 ->  | F65: =F66+F69+F87+F105 -> 546196.3514 | G65: -1901.1
A66: ДОТАЦИИ БЮДЖЕТАМ МУНИЦИПАЛЬНЫХ ОБРАЗОВАНИЙ | B66: 000 | C66: 2 02 01000 00 0000 151 | D66: =D67+D68 -> 128485 | E66: =E67+E68 -> 0 | F66: =F67+F68 -> 128485 | G66: 0
A67: Дотации муниципальным районам на выравнивание уровня бюджетной обеспеченности | B67: 910 | C67: 2 02 01001 05 0000 151 | D67: 115567 | F67: 115567 | G67: 0
A68: Дотации муниципальным районам на поддержку мер по обеспечению сбалансированности бюджетов | B68: 910 | C68: 2 02 01003 05 0000 151 | D68: 12918 | F68: 12918 | G68: 0
A69: СУБСИДИИ БЮДЖЕТАМ МУНИЦИПАЛЬНЫХ ОБРАЗОВАНИЙ | B69: 000 | C69: 2 02 02000 00 0000 151 | D69: =D70+D71+D72+D74+D73 -> 95734.68 | E69: =E70+E71+E72+E74+E73+#REF! ->  | F69: =F70+F71+F72+F74+F73 -> 93221.58 | G69: -2513.1
A70: Федеральная программа "Молодым семьям - доступное жилье на 2005-2019 годы" | B70: 917 | C70: 2 02 02051 05 0000 151 | D70: 166.824 | F70: 166.824 | G70: 0
A71: Долгосрочная целевая программа "Энергосбережение и повышение энергетической эффективности на территории Иркутской области на 2011-2015 годы и на период до 2020 года | B71: 910 | C71: 2 02 02150 05 0000 151 | D71: 471.4 | F71: 471.4 | G71: 0
A72: Областная государственная социальная программа "Молодым семьям- доступное жилье" на 2005-2019 годы" | B72: 917 | C72: 2 02 02008 05 0000 151 | D72: 190.656 | F72: 190.656 | G72: 0
A73: Долгосрочная целевая программа «Поддержка и развитие малого и среднего предпринимательства в Иркутской области» на 2011-2012 годы (за счет федерального бюджета) | B73: 917 | C73: 2 02 02009 05 0000 151 | D73: 240 | E73: 240 | F73: 240 | G73: 0
A74: Прочие субсидии | B74: 000 | C74: 2 02 02999 05 0000 151 | D74: =D75+D76+D77+D78+D79+D80+D82+D84+D83+D85 -> 94665.8 | E74: =E75+E76+E77+E78+E79+E80+E82+E84+E83+E85 -> 36739.6 | F74: =F75+F76+F77+F78+F79+F80+F82+F84+F83+F85+F86 -> 92152.7 | G74: -2513.1
A75: Субсидии на выплату заработной платы с начислениями на нее педагогическим работникам муниципальных дошкольных образовательных учреждений | B75: 907 | C75: 2 02 02999 05 0000 151 | D75: 7995 | E75: 4259 | F75: 7995 | G75: 0
A76: Субсидия за счет средств долгосрочной целевой программы Иркутской области "Повышение эффективности бюджетных расходов Иркутской области на 2011-2013 годы" | B76: 910 | C76: 2 02 02999 05 0000 151 | D76: 33215 | E76: 8399 | F76: 33215 | G76: 0
A77: Погашение кредиторской задолженности учреждений, находящихся в ведении органов местного самоуправления муниципальных образований Иркутской области, по страховым взносам на обязательное пенсионное страхование, сложившейся за период с 1 января 2002 года до 31 декабря 2009 года, и по страховым взносам на обязательное пенсионное страхование, обязательное медицинское страхование и обязательное социальное страхование на случай временной нетрудоспособности и в связи с материнством за период 2010-2011 годы, а также пеней и штрафов, начисленных на задолженность 2010-2011 годов | B77: 910 | C77: 2 02 02999 05 0000 151 | D77: 1787 | F77: 1787 | G77: 0
A78: Погашение реструктуризированной кредиторской задолженности учреждений, находящихся в ведении органов местного самоуправления муниципальных образований Иркутской области, по страховым взносам на обязательное пенсионное страхование, сложившейся за период с 1 января 2002 года до 31 декабря 2009 года, и по страховым взносам на обязательное пенсионное страхование, обязательное медицинское страхование и обязательное социальное страхование на случай временной нетрудоспособности и в связи с материнством за период 2010-2011 годы, а также пеней и штрафов, начисленных на задолженность 2010-2011 годов | B78: 910 | C78: 2 02 02999 05 0000 151 | D78: 36982.5 | E78: 16444.2 | F78: 36982.5 | G78: 0
A79: Долгосрочная целевая программа "Социальное развитие села Иркутской области на 2011-2014 годы" | B79: 907 | C79: 2 02 02999 05 0000 151 | D79: 0 | E79: -3093 | F79: 0 | G79: =F79-D79 -> 0
A80: Долгосрочная целевая программа Иркутской области "100 модельных домов культуры Приангарью" на 2011-2014 годы | B80: 917 | C80: 2 02 02999 05 0000 151 | D80: 1000 | F80: 1000 | G80: 0
G81: 0
A82: Долгосрочная целевая программа Иркутской области «Организация и обеспечение отдыха и оздоровления детей в Иркутской области на 2012-2014 годы» | B82: 907 | C82: 2 02 02999 05 0000 151 | D82: 2384.9 | F82: 2384.9 | G82: 0
A83: Долгосрочная целевая программа поддержки и развития учреждений дошкольного образования в Иркутской области на 2009-2014 годы» | B83: 907 | C83: 2 02 02999 05 0000 151 | D83: 10670.4 | E83: 10670.4 | F83: 7857.3 | G83: -2813.1
A84: Создание условий для оказания медицинской помощи населению на территории муниципального района (городского округа) Иркутской области в соответствии с территориальной программой государственных гарантий оказания гражданам Российской Федерации бесплатной медицинской помощи в Иркутской области на 2012 год, утвержденной постановлением Правительства Иркутской области от 30 декабря 2011 года №427-пп, и Законом Иркутской области от 5 марта 2010г. №4-ОЗ "Об отдельных вопросах здравоохранения в Иркутской области" | B84: 910 | C84: 2 02 02999 05 0000 151 | D84: 571 | F84: 571 | G84: 0
A85: Долгосрочная целевая программа «Поддержка и развитие малого и среднего предпринимательства в Иркутской области» на 2011-2012 годы (за счет областного бюджета) | B85: 917 | C85: 2 02 02999 05 0000 151 | D85: 60 | E85: 60 | F85: 60 | G85: 0
A86: Подпрограмма «Подготовка объектов коммунальной инфраструктуры Иркутской области к отопительному сезону в 2011-2012 годах» | B86: 907 | C86: 2 02 02999 05 0000 151 | D86: 0 | F86: 300 | G86: 300
A87: СУБВЕНЦИИ БЮДЖЕТАМ МУНИЦИПАЛЬНЫХ ОБРАЗОВАНИЙ | B87: 000 | C87: 2 02 03000 00 0000 151 | D87: =D89+D90+D91+D93+D94+D95+D96+D97+D98+D99+D100+D101+D102+D103 -> 295311.71 | E87: =E89+E90+E91+E93+E94+E95+E96+E97+E98+E99+E100+E101+E102+E103 -> -3690.81 | F87: =F89+F90+F91+F93+F94+F95+F96+F97+F98+F99+F100+F101+F102+F103 -> 295923.71 | G87: 612
A88: Субвенции бюджетам муниципальных районов на осуществление полномочий по подготовке проведения статистических переписей | B88: 917 | C88: 2 02 03002 05 0000 151 | D88: 0 | F88: 0 | G88: 0
A89: Субвенции бюджетам муниципальных районов на составление списков кандидатов в присяжные заседатели федеральных судов общей юрисдикции в Российской Федерации | B89: 917 | C89: 2 02 03007 05 0000 151 | D89: 7.52 | F89: 7.52 | G89: 0
A90: Субвенции бюджетам на ежемесячное денежное вознаграждение за классное руководство | B90: 907 | C90: 2 02 03021 05 0000 151 | D90: 5162.3 | F90: 5162.3 | G90: 0
A91: Субвенции бюджетам муниципальных образований на предоставление гражданам субсидий на оплату жилого помещения и коммунальных услуг | B91: 918 | C91: 2 02 03022 05 0000 151 | D91: 8707 | E91: 58.8 | F91: 7129 | G91: -1578
A92: Субвенции местным бюджетам на выполнение переданных полномочий субъектов РФ | B92: 000 | C92: 2 02 03024 05 0000 151 | D92: =D93+D94+D95+D96+D97+D98+D99 -> 37807.2 | E92: =E93+E94+E95+E96+E97+E98+E99 -> -12840.8 | F92: =F93+F94+F95+F96+F97+F98+F99 -> 37807.2 | G92: 0
A93: Хранение, комплектование, учет и использование архивных документов, относящихся к областной государственной собственности | B93: 917 | C93: 2 02 03024 05 0000 151 | D93: 1027 | E93: 73 | F93: 1027 | G93: 0
A94: Государственные полномочия в области охраны труда | B94: 917 | C94: 2 02 03024 05 0000 151 | D94: 532.9 | E94: 42.9 | F94: 532.9 | G94: 0
A95: Определение персонального состава и обеспечение деятельности районных (городских), районных в городах комиссий по делам несовершеннолетних и защите их прав | B95: 917 | C95: 2 02 03024 05 0000 151 | D95: 1019.5 | E95: 82.1 | F95: 1019.5 | G95: 0
A96: Лицензирование розничной продажи алкогольной продукции | B96: 917 | C96: 2 02 03024 05 0000 151 | D96: 376.6 | E96: 30.3 | F96: 376.6 | G96: 0
A97: Определение персонального состава и обеспечение деятельности административных комиссий | B97: 917 | C97: 2 02 03024 05 0000 151 | D97: 532.9 | E97: 42.9 | F97: 532.9 | G97: 0
A98: Предоставление мер социальной поддержки многодетным и малоимущим семьям | B98: 907 | C98: 2 02 03024 05 0000 151 | D98: 4145.3 | F98: 4145.3 | G98: 0
A99: Осуществление отдельных областных полномочий в области охраны здоровья граждан | B99: 910 | C99: 2 02 03024 05 0000 151 | D99: 30173 | E99: -13112 | F99: 30173 | G99: 0
A100: Субвенции бюджетам муниципальных районов на обеспечение жилыми помещениями детей-сирот, детей, оставшихся без попечения родителей, а также детей, находящихся под опекой (попечительством), не имеющих закрепленного жилого помещения | B100: 913 | C100: 2 02 03026 05 0000 151 | D100: 1999.8 | E100: 9.9 | F100: 1999.8 | G100: 0
A101: Субвенции бюджетам муниципальных районов на обеспечение жилыми помещениями детей-сирот, детей, оставшихся без попечения родителей, а также детей, находящихся под опекой (попечительством), не имеющих закрепленного жилого помещения (федер.) | B101: 913 | C101: 2 02 03026 05 0000 151 | D101: 2070.29 | E101: 2070.29 | F101: 2070.29 | G101: 0
A102: Субвенция бюджетам муниципальных образований на денежные выплаты медицинскому персоналу фельдшерско-акушерских пунктов, врачам, фельдшерам и медицинским сестрам скорой медицинской помощи | B102: 910 | C102: 2 02 03055 05 0000 151 | D102: 4394 | F102: 4933 | G102: 539
A103: Прочие субвенции | B103: 000 | C103: 2 02 03999 05 0000 151 | D103: =D104 -> 235163.6 | E103: =E104 -> 7011 | F103: =F104 -> 236814.6 | G103: 1651
A104: Субвенция на обеспечение государственных гарантий прав граждан на получение общедоступного и бесплатного дошкольного, начального общего, основного общего, среднего (полного) общего образования, а также дополнительного образования в общеобразовательных учреждениях | B104: 907 | C104: 2 02 03999 05 0000 151 | D104: 235163.6 | E104: 7011 | F104: 236814.6 | G104: 1651
A105: ИНЫЕ МЕЖБЮДЖЕТНЫЕ ТРАНСФЕРТЫ | B105: 000 | C105: 2 02 04000 00 0000 151 | D105: =D106+D111+D113+D114+D112+D118 -> 28566.0614 | E105: =E106+E111+E113+E114+E112+E118 -> -1046.0596 | F105: =F106+F111+F113+F114+F112+F118 -> 28566.0614 | G105: 0
A106: Межбюджетные трансферты, передаваемые бюджетам муниципальных районов из бюджетов поселений на осуществление части полномочий по решению вопросов местного значения в соответствии с заключенными соглашениями | B106: 000 | C106: 2 02 04014 05 0000 151 | D106: =D107+D108+D109+D110 -> 22276.4824 | E106: =E107+E108+E109+E110 -> 3415.5614 | F106: =F107+F108+F109+F110 -> 22276.4824 | G106: 0
A107: Межбюджетные трансферты, передаваемые бюджетам муниципальных районов из бюджетов поселений на осуществление части полномочий по решению вопросов местного значения в соответствии с заключенными соглашениями | B107: 910 | C107: 2 02 04014 05 0000 151 | D107: 959.641 | F107: 959.641 | G107: 0
A108: Межбюджетные трансферты, передаваемые бюджетам муниципальных районов из бюджетов поселений на осуществление части полномочий по решению вопросов местного значения в соответствии с заключенными соглашениями (правила землепользования) | B108: 918 | C108: 2 02 04014 05 0000 151 | D108: 2780.46004 | E108: 2780.46004 | F108: 2780.46004 | G108: 0
A109: Межбюджетные трансферты, передаваемые бюджетам муниципальных районов из бюджетов поселений на осуществление части полномочий по решению вопросов местного значения в соответствии с заключенными соглашениями (генплан 5%) | B109: 918 | C109: 2 02 04014 05 0000 151 | D109: 930.60136 | E109: 930.60136 | F109: 930.60136 | G109: 0
A110: Межбюджетные трансферты, передаваемые бюджетам муниципальных районов из бюджетов поселений на осуществление части полномочий по решению вопросов местного значения в соответствии с заключенными соглашениями (генплан ) | B110: 918 | C110: 2 02 04014 05 0000 151 | D110: 17605.78 | E110: -295.5 | F110: 17605.78 | G110: 0
A111: Межбюджетные трансферты, передаваемые бюджетам муниципальных районов на комплектование книжных фондов библиотек муниципальных образований (областной бюджет) | B111: 910 | C111: 2 02 04025 05 0000 151 | D111: 150 | F111: 150 | G111: 0
A112: Межбюджетные трансферты, передаваемые бюджетам муниципальных районов на комплектование книжных фондов библиотек муниципальных образований (федеральный бюджет) | B112: 910 | C112: 2 02 04025 05 0000 151 | D112: 281 | F112: 281 | G112: 0
A113: Межбюджетные трансферты на укрепление материально-технической базы медицинских учреждений | B113: 910 | C113: 2 02 04034 05 0001 151 | D113: 4935 | E113: -4626.2 | F113: 4935 | G113: 0
A114: Межбюджетные трансферты на внедрение современных информационных систем в здравоохранение | B114: 910 | C114: 2 02 04034 05 0002 151 | D114: 759 | F114: 759 | G114: 0
A115: Прочие межбюджетные трансферты, передаваемые бюджетам муниципальных районов | B115: 000 | C115: 2 02 04999 05 0000 151 | D115: =D116+D117 -> 0 | F115: =F116+F117 -> 0 | G115: 0
A116: Дотации на возмещ.расходов местных бюджетов в связи с предоставлением льгот по оплате жилого помещения и коммунальных услуг педагогическим работникам, проживающим в сельской местности, рабочих поселках (пгт) и работающим в муниц.образоват.учреждениях | B116: 907 | C116: 2 02 04999 05 0000 151 | D116: 0 | F116: 0 | G116: 0
A117: Межбюджетные трансферты в целях финансовой поддержки муниципальных образований Иркутской области, осуществляющих эффективное управление бюджетными средствами | B117: 910 | C117: 2 02 04999 05 0000 151 | D117: 0 | F117: 0 | G117: 0
A118: ПРОЧИЕ МЕЖБЮДЖЕТНЫЕ ТРАНСФЕРТЫ | B118: 000 | C118: 2 02 04999 00 0000 151 | D118: 164.579 | E118: 164.579 | F118: 164.579 | G118: 0
A119: Резервные фонды исполнительных органов государственной власти субъектов Российской Федерации | B119: 917 | C119: 2 02 04999 05 0000 151 | D119: 164.579 | E119: 164.579 | F119: 164.579 | G119: 0
A120: ПРОЧИЕ БЕЗВОЗМЕЗДНЫЕ ПОСТУПЛЕНИЯ | B120: 000 | C120: 2 07 00000 00 0000 180 | D120: =D121 -> 4810 | E120: =E121 -> 1000 | F120: =F121 -> 5810 | G120: 1000
A121: Прочие безвозмездные поступления в бюджеты муниципальных районов | B121: 000 | C121: 2 07 05000 05 0000 180 | D121: 4810 | E121: =1000 -> 1000 | F121: 5810 | G121: 1000
A122: ВОЗВРАТ ОТСТАКОВ СУБСИДИЙ И СУБВЕНЦИЙ | B122: 000 | C122: 2 19 00000 00 0000 000 | D122: -151.2 | F122: -151.2 | G122: 0
A123: Возврат остатков субсидий и субвенций из бюджетов муниципальных районов | B123: 910 | C123: 2 19 05000 05 0000 180 | D123: -151.2 | F123: -151.2 | G123: 0
A124: ИТОГО ДОХОДОВ | B124: 000 | C124: 8 50 00000 00 0000 000 | D124: =D64+D11 -> 648775.6 | E124: =E64+E11 ->  | F124: =F64+F11 -> 654698.4514 | G124: 5922.8514
A126: Начальник финансового управления | D126: Ю.Н. Гайдук | F126: Ю.Н. Гайдук

Sheet прил.3
A6: Перечень администраторов доходов бюджета Черемховского районного муниципального образования органов местного самоуправления и подведомственных им учреждений
A8: Код бюджетной классификации РФ | C8: Наименование главного администратора доходов районного бюджета
A9: главного администратора доходов | B9: доходов районного бюджета
A11: 904 | C11: Отдел по культуре и библиотечному обслуживанию администрации Черемховского районного муниципального образования
A12: 904 | B12: 1 17 01050 05 0000 180 | C12: Невыясненные поступления, зачисляемые в бюджеты муниципальных районов
A13: 904 | B13: 1 17 05050 05 0000 180 | C13: Прочие неналоговые доходы бюджетов муниципальных районов
A14: 904 | B14: 2 07 05000 05 0000 180 | C14: Прочие безвозмездные поступления в бюджеты муниципальных районов
A15: 907 | C15: Отдел образования администрации Черемховского районного муниципального образования
A16: 907 | B16: 1 13 01995 05 0000 130 | C16: Прочие доходы от оказания платных услуг (работ) получателями средств бюджетов муниципальных районов
A17: 907 | B17: 1 13 02995 05 0000 130 | C17: Прочие доходы от компенсации затрат бюджетов муниципальных районов
A18: 907 | B18: 1 17 01050 05 0000 180 | C18: Невыясненные поступления, зачисляемые в бюджеты муниципальных районов
A19: 907 | B19: 1 17 05050 05 0000 180 | C19: Прочие неналоговые доходы бюджетов муниципальных районов
A20: 907 | B20: 2 02 01999 05 0000 151 | C20: Прочие дотации бюджетам муниципальных районов
A21: 907 | B21: 2 02 02022 05 0000 151 | C21: Субсидии бюджетам муниципальных образований на внедрение инновационных образовательных программ
A22: 907 | B22: 2 02 02999 05 0000 151 | C22: Долгосрочная целевая программа "Социальное развитие села Иркутской области на 2012-2014 годы"
A23: 907 | B23: 2 02 02999 05 0000 151 | C23: Прочие субсидии бюджетам муниципальных районов
A24: 907 | B24: 2 02 03021 05 0000 151 | C24: Субвенции бюджетам муниципальных районов на ежемесячное денежное вознаграждение за классное руководство
A25: 907 | B25: 2 02 03024 05 0000 151 | C25: Субвенции бюджетам муниципальных районов на выполнение передаваемых полномочий субъектов РФ
A26: 907 | B26: 2 02 03026 05 0000 151 | C26: Субвенции бюджетам муниципальных районов на обеспечение жилыми помещениями детей-сирот, детей, оставшихся без попечения родителей, а также детей, находящихся под опекой (попечительством), не имеющих закрепленного жилого помещения
A27: 907 | B27: 2 02 03999 05 0000 151 | C27: Прочие субвенции бюджетам муниципальных районов
A28: 907 | B28: 2 02 04999 05 0000 151 | C28: Прочие межбюджетные трансферты, передаваемые бюджетам муниципальных районов
A29: 907 | B29: 2 07 05000 05 0000 180 | C29: Прочие безвозмездные поступления в бюджеты муниципальных районов
A30: 910 | C30: Финансовое управление Администрации Черемховского районного муниципального образования
A31: 910 | B31: 1 17 01050 05 0000 180 | C31: Невыясненные поступления, зачисляемые в бюджеты муниципальных районов
A32: 910 | B32: 1 17 05050 05 0000 180 | C32: Прочие неналоговые доходы бюджетов муниципальных районов
A33: 910 | B33: 2 02 01001 05 0000 151 | C33: Дотации бюджетам муниципальных районов на выравнивание уровня бюджетной обеспеченности
A34: 910 | B34: 2 02 01003 05 0000 151 | C34: Дотации бюджетам муниципальных районов на поддержку мер по обеспечению сбалансированности бюджетов
A35: 910 | B35: 2 02 01999 05 0000 151 | C35: Прочие дотации бюджетам муниципальных районов
A36: 910 | B36: 2 02 02008 05 0000 151 | C36: Субсидии бюджетам муниципальных районов на обеспечение жильем молодых семей
A37: 910 | B37: 2 02 02150 05 0000 151 | C37: Субсидии бюджетам муниципальных районов по программе "Энергосбережение и повышение энергетической эффективности на территории Иркутской области на 2011-2015 годы и на период до 2020 года"
A38: 910 | B38: 2 02 02999 05 0000 151 | C38: Создание условий для оказания медицинской помощи населению на территориии муниципального района Иркутской области в соответствии с территориальной программой государственных гарантий оказания гражданам РФ бесплатной медицинской помощи в Иркутской области на 2012 год, утвержденной постановлением Правительства Иркутской области от 30 декабря 2011 года №427--пп, и Законом Иркутской области от 5 марта 2010г. №4-ОЗ "Об отдельных вопросах здравоохранения
A39: 910 | B39: 2 02 02999 05 0000 151 | C39: Прочие субсидии бюджетам муниципальных районов
A40: 910 | B40: 2 02 03024 05 0000 151 | C40: Субвенция на осуществление отдельных областных полномочий в области охраны здоровья граждан
A41: 910 | B41: 2 02 03055 05 0000 151 | C41: Субвенция бюджетам муниципальных образований на денежные выплаты медицинскому персоналу фельдшерско-акушерских пунктов, врачам, фельдшерам и медицинским сестрам скорой медицинской помощи
A42: 910 | B42: 2 02 03999 05 0000 151 | C42: Прочие субвенции бюджетам муниципальных районов
A43: 910 | B43: 2 02 04014 05 0000 151 | C43: Межбюджетные трансферты, передаваемые бюджетам муниципальных районов из бюджетов поселений на осуществление части полномочий по решению вопросов местного значения в соответствии с заключенными соглашениями
A44: 910 | B44: 2 02 04034 05 0001 151 | C44: Межбюджетные трансферты на укрепление материально-технической базы медицинских учреждений
A45: 910 | B45: 2 02 04034 05 0002 151 | C45: Межбюджетные трансферты на внедрение современных информационных систем в здравоохранение
A46: 910 | B46: 2 02 04025 05 0000 151 | C46: Межбюджетные трансферты, передаваемые бюджетам муниципальных районов на комплектование книжных фондов библиотек муниципальных образований
A47: 910 | B47: 2 02 04999 05 0000 151 | C47: Прочие межбюджетные трансферты, передаваемые бюджетам муниципальных районов
A48: 910 | B48: 2 07 05000 05 0000 180 | C48: Прочие безвозмездные поступления в бюджеты муниципальных районов
A49: 910 | B49: 2 08 05000 05 0000 180 | C49: Перечисления из бюджетов муниципальных районов (в бюджеты муниципальных районов) для осуществления возврата (зачета) излишне уплаченных или излишне взысканных сумм налогов, сборов и иных платежей, а также сумм процентов за несвоевременное осуществление такого возврата и процентов, начисленных на излишне взысканные суммы
A50: 910 | B50: 2 19 05000 05 0000 151 | C50: Возврат остатков субсидий и субвенций из бюджетов муниципальных районов
A51: 913 | C51: Комитет по управлению муниципальным имуществом администрации Черемховского районного муниципального образования
A52: 913 | B52: 1 11 05013 10 0000 120 | C52: Доходы, получаемые в виде арендной платы за земельные участки, государственная собственность на которые не разграничена и которые расположены в границах поселений, а также средства от продажи права на заключение договоров аренды указанных земельных участков
A53: 913 | B53: 1 11 05035 05 0000 120 | C53: Доходы от сдачи в аренду имущества, находящегося в оперативном управлении органов управления муниципальных районов и созданных ими учреждений (за исключением имущества муниципальных автономных учреждений)
A54: 913 | B54: 1 14 02052 05 0000 410 | C54: Доходы от реализации имущества, находящегося в оперативном управлении учреждений, находящихся в ведении органов управления муниципальных районов (за исключением имущества муниципальных автономных учреждений), в части реализации основных средств по указанному иммуществу
A55: 913 | B55: 1 14 02052 05 0000 440 | C55: Доходы от реализации имущества, находящегося в оперативном управлении учреждений, находящихся в ведении органов управления муниципальных районов (за исключением имущества муниципальных автономных учреждений), в части реализации материальных запасов по указанному имуществу
A56: 913 | B56: 1 14 02053 05 0000 410 | C56: Доходы от реализации иного имущества, находящегося в собственности муниципальных районов (за исключением имущества муниципальных автономных учреждений, а также имущества муниципальных унитарных предприятий, в том числе казенных), в части реализации основных средств по указанному имуществу
A57: 913 | B57: 1 14 02053 05 0000 440 | C57: Доходы от реализации иного имущества, находящегося в собственности муниципальных районов (за исключением имущества муниципальных автономных учреждений, а также имущества муниципальных унитарных предприятий, в том числе казенных), в части реализации материальных запасов по указанному имуществу
A58: 913 | B58: 1 14 06013 10 0000 430 | C58: Доходы от продажи земельных участков, государственная собственность на которые не разграничена и которые расположены в границах поселений
A59: 913 | B59: 1 14 06025 05 0000 430 | C59: Доходы от продажи земельных участков, находящихся в собственности муниципальных районов (за исключением земельных участков муниципальных автономных учреждений)
A60: 913 | B60: 1 17 01050 05 0000 180 | C60: Невыясненные поступления, зачисляемые в бюджеты муниципальных районов
A61: 913 | B61: 1 17 05050 05 0000 180 | C61: Прочие неналоговые доходы бюджетов муниципальных районов
A62: 913 | B62: 2 02 03026 05 0000 151 | C62: Субвенции бюджетам муниципальных районов на обеспечение жилыми помещениями детей-сирот, детей, оставшихся без попечения родителей, а также детей, находящихся под опекой (попечительством), не имеющих закрепленного жилого помещения
A63: 917 | C63: Администрация Черемховского районного муниципального образования
A64: 917 | B64: 1 08 07084 01 1000 110 | C64: Государственная пошлина за совершение действий, связанных с лицензированием, с проведением аттестации в случаях, если такая аттестация предусмотрена законодательством Российской Федерации, зачисляемая в бюджеты муниципальных районов
A65: 917 | B65: 1 16 90050 05 0000 140 | C65: Прочие поступления от денежных взысканий (штрафов) и иных сумм в возмещение ущерба, зачисляемые в бюджеты муниципальных районов
A66: 917 | B66: 1 17 01050 05 0000 180 | C66: Невыясненные поступления, зачисляемые в бюджеты муниципальных районов
A67: 917 | B67: 1 17 05050 05 0000 180 | C67: Прочие неналоговые доходы бюджетов муниципальных районов
A68: 917 | B68: 2 02 01999 05 0000 151 | C68: Прочие дотации бюджетам муниципальных районов
A69: 917 | B69: 2 02 02008 05 0000 151 | C69: Субсидии бюджетам муниципальных районов на обеспечение жильем молодых семей
A70: 917 | B70: 2 02 02009 05 0000 151 | C70: Субсидии на государственную поддержку малого и среднего предпринимательства, включая крестьянские (фермерские) хозяйства
A71: 917 | B71: 2 02 02051 05 0000 151 | C71: Субсидии бюджетам муниципальных районов на обеспечение жильем молодых семей
A72: 917 | B72: 2 02 02105 05 0000 151 | C72: Субсидии бюджетам муниципальных районов на проведение противоаварийных мероприятий в зданиях государственных и муниципальных общеобразовательных учреждений
A73: 917 | B73: 2 02 02999 05 0000 151 | C73: Прочие субсидии бюджетам муниципальных районов
A74: 917 | B74: 2 02 03002 05 0000 151 | C74: Субвенции бюджетам муниципальных районов на осуществление полномочий по подготовке проведения статистических переписей
A75: 917 | B75: 2 02 03007 05 0000 151 | C75: Субвенции бюджетам муниципальных районов на составление списков кандидатов в присяжные заседатели федеральных судов общей юрисдикции в Российской Федерации
A76: 917 | B76: 2 02 03022 05 0000 151 | C76: Субвенции бюджетам муниципальных образований на предоставление гражданам субсидий на оплату жилого помещения и коммунальных услуг
A77: 917 | B77: 2 02 03024 05 0000 151 | C77: Субвенции бюджетам муниципальных районов на выполнение передаваемых полномочий субъектов РФ
A78: 917 | B78: 2 02 03999 05 0000 151 | C78: Прочие субвенции бюджетам муниципальных районов
A79: 917 | B79: 2 02 04014 05 0000 151 | C79: Межбюджетные трансферты, передаваемые бюджетам муниципальных районов из бюджетов поселений на осуществление части полномочий по решению вопросов местного значения в соответствии с заключенными соглашениями
A80: 917 | B80: 2 02 04999 05 0000 151 | C80: Прочие межбюджетные трансферты, передаваемые бюджетам муниципальных районов
A81: 917 | B81: 2 07 05000 05 0000 180 | C81: Прочие безвозмездные поступления в бюджеты муниципальных районов
A82: 918 | C82: Управление жилищно-коммунального хозяйства, строительства, транспорта, связи и экологии администрации Черемховского районного муниципального образования
A83: 918 | B83: 1 16 90050 05 0000 140 | C83: Прочие поступления от денежных взысканий (штрафов) и иных сумм в возмещение ущерба, зачисляемые в бюджеты муниципальных районов
A84: 918 | B84: 1 17 01050 05 0000 180 | C84: Невыясненные поступления, зачисляемые в бюджеты муниципальных районов
A85: 918 | B85: 1 17 05050 05 0000 180 | C85: Прочие неналоговые доходы бюджетов муниципальных районов
A86: 918 | B86: 2 02 03022 05 0000 151 | C86: Субвенции бюджетам муниципальных образований на предоставление гражданам субсидий на оплату жилого помещения и коммунальных услуг
A87: 918 | B87: 2 07 05000 05 0000 180 | C87: Прочие безвозмездные поступления в бюджеты муниципальных районов
A88: 918 | B88: 2 02 04014 05 0000 151 | C88: Межбюджетные трансферты, передаваемые бюджетам муниципальных районов из бюджетов поселений на осуществление части полномочий по решению вопросов местного значения в соответствии с заключенными соглашениями
A89: 919 | C89: Муниципальное казенное учреждение культуры "Межпоселенческий культурный центр администрации Черемховского районного муниципального образования"
A90: 919 | B90: 1 13 01995 05 0000 130 | C90: Прочие доходы от оказания платных услуг (работ) получателями средств бюджетов муниципальных районов
A91: 919 | B91: 1 13 02995 05 0000 130 | C91: Прочие доходы от компенсации затрат бюджетов муниципальных районов
A92: 919 | B92: 1 17 01050 05 0000 180 | C92: Невыясненные поступления, зачисляемые в бюджеты муниципальных районов
A93: 919 | B93: 1 17 05050 05 0000 180 | C93: Прочие неналоговые доходы бюджетов муниципальных районов
A94: 919 | B94: 2 02 01999 05 0000 151 | C94: Прочие дотации бюджетам муниципальных районов
A95: 919 | B95: 2 02 02999 05 0000 151 | C95: Прочие субсидии бюджетам муниципальных районов
A96: 919 | B96: 2 02 03999 05 0000 151 | C96: Прочие субвенции бюджетам муниципальных районов
A97: 919 | B97: 2 02 04999 05 0000 151 | C97: Прочие межбюджетные трансферты, передаваемые бюджетам муниципальных районов
A98: 919 | B98: 2 07 05000 05 0000 180 | C98: Прочие безвозмездные поступления в бюджеты муниципальных районов
A99: 920 | C99: Муниципальное казенное учреждение культуры "Районный историко-краеведческий музей"
A100: 920 | B100: 1 13 01995 05 0000 130 | C100: Прочие доходы от оказания платных услуг (работ) получателями средств бюджетов муниципальных районов
A101: 920 | B101: 1 13 02995 05 0000 130 | C101: Прочие доходы от компенсации затрат бюджетов муниципальных районов
A102: 920 | B102: 1 17 01050 05 0000 180 | C102: Невыясненные поступления, зачисляемые в бюджеты муниципальных районов
A103: 920 | B103: 1 17 05050 05 0000 180 | C103: Прочие неналоговые доходы бюджетов муниципальных районов
A104: 920 | B104: 2 02 01999 05 0000 151 | C104: Прочие дотации бюджетам муниципальных районов
A105: 920 | B105: 2 02 02999 05 0000 151 | C105: Прочие субсидии бюджетам муниципальных районов
A106: 920 | B106: 2 02 03999 05 0000 151 | C106: Прочие субвенции бюджетам муниципальных районов
A107: 920 | B107: 2 02 04999 05 0000 151 | C107: Прочие межбюджетные трансферты, передаваемые бюджетам муниципальных районов
A108: 920 | B108: 2 07 05000 05 0000 180 | C108: Прочие безвозмездные поступления в бюджеты муниципальных районов
A109: 921 | C109: Муниципальное казенное учреждение культуры "Межпоселенческая библиотека Черемховского района"
A110: 921 | B110: 1 13 01995 05 0000 130 | C110: Прочие доходы от оказания платных услуг (работ) получателями средств бюджетов муниципальных районов
A111: 921 | B111: 1 13 02995 05 0000 130 | C111: Прочие доходы от компенсации затрат бюджетов муниципальных районов
A112: 921 | B112: 1 17 01050 05 0000 180 | C112: Невыясненные поступления, зачисляемые в бюджеты муниципальных районов
A113: 921 | B113: 1 17 05050 05 0000 180 | C113: Прочие неналоговые доходы бюджетов муниципальных районов
A114: 921 | B114: 2 02 01999 05 0000 151 | C114: Прочие дотации бюджетам муниципальных районов
A115: 921 | B115: 2 02 04025 05 0000 151 | C115: Межбюджетные трансферты, передаваемые бюджетам муниципальных районов на комплектование книжных фондов библиотек муниципальных образований
A116: 921 | B116: 2 02 02999 05 0000 151 | C116: Прочие субсидии бюджетам муниципальных районов
A117: 921 | B117: 2 02 03999 05 0000 151 | C117: Прочие субвенции бюджетам муниципальных районов
A118: 921 | B118: 2 02 04999 05 0000 151 | C118: Прочие межбюджетные трансферты, передаваемые бюджетам муниципальных районов
A119: 921 | B119: 2 07 05000 05 0000 180 | C119: Прочие безвозмездные поступления в бюджеты муниципальных районов
A120: 922 | C120: Муниципальное казенное образовательное учреждение дополнительного образования детей "Детская школа искусств поселка Михайловка"
A121: 922 | B121: 1 13 01995 05 0000 130 | C121: Прочие доходы от оказания платных услуг (работ) получателями средств бюджетов муниципальных районов
A122: 922 | B122: 1 13 02995 05 0000 130 | C122: Прочие доходы от компенсации затрат бюджетов муниципальных районов
A123: 922 | B123: 1 17 01050 05 0000 180 | C123: Невыясненные поступления, зачисляемые в бюджеты муниципальных районов
A124: 922 | B124: 1 17 05050 05 0000 180 | C124: Прочие неналоговые доходы бюджетов муниципальных районов
A125: 922 | B125: 2 02 01999 05 0000 151 | C125: Прочие дотации бюджетам муниципальных районов
A126: 922 | B126: 2 02 02999 05 0000 151 | C126: Прочие субсидии бюджетам муниципальных районов
A127: 922 | B127: 2 02 03999 05 0000 151 | C127: Прочие субвенции бюджетам муниципальных районов
A128: 922 | B128: 2 02 04999 05 0000 151 | C128: Прочие межбюджетные трансферты, передаваемые бюджетам муниципальных районов
A129: 922 | B129: 2 07 05000 05 0000 180 | C129: Прочие безвозмездные поступления в бюджеты муниципальных районов
A130: 923 | C130: Контрольно-счетная палата Черемховского районного муниципального образования
A131: 923 | B131: 1 17 01050 05 0000 180 | C131: Невыясненные поступления, зачисляемые в бюджеты муниципальных районов
A132: 923 | B132: 1 17 05050 05 0000 180 | C132: Прочие неналоговые доходы бюджетов муниципальных районов
A134: Начальник финансового управления | C134: Ю.Н. Гайдук

Sheet прил5
A7: Распределение бюджетных ассигнований на 2012 год по разделам, подразделам, целевым статьям и видам расходов в структуре расходов бюджета Черемховского районного муниципального образования
A9: Наименование показателя | B9: Код | F9: Сумма, тыс. руб.
B10: раздела | C10: подраздела | D10: целевой статьи | E10: вида расходов
A11: 1 | B11: 2 | C11: 3 | D11: 4 | E11: 5 | F11: 6
A12: ОБЩЕГОСУДАРСТВЕННЫЕ ВОПРОСЫ | B12: 1 | C12: 0 | D12: 0 | E12: 0 | F12: 77828.1
A13: Функционирование высшего должностного лица субъекта Российской Федерации и муниципального образования | B13: 1 | C13: 2 | D13: 0 | E13: 0 | F13: 2034.5
A14: Руководство и управление в сфере установленных функций органов государственной власти субъектов Российской Федерации и органов местного самоуправления | B14: 1 | C14: 2 | D14: 20000 | E14: 0 | F14: 2034.5
A15: Глава муниципального образования | B15: 1 | C15: 2 | D15: 20300 | E15: 0 | F15: 2034.5
A16: Выполнение функций органами местного самоуправления | B16: 1 | C16: 2 | D16: 20300 | E16: 500 | F16: 2034.5
A17: Функционирование законодательных (представительных) органов государственной власти и представительных органов муниципальных образований | B17: 1 | C17: 3 | D17: 0 | E17: 0 | F17: 1601.4
A18: Руководство и управление в сфере установленных функций органов государственной власти субъектов Российской Федерации и органов местного самоуправления | B18: 1 | C18: 3 | D18: 20000 | E18: 0 | F18: 1599.8
A19: Центральный аппарат | B19: 1 | C19: 3 | D19: 20400 | E19: 0 | F19: 638.2
A20: Выполнение функций органами местного самоуправления | B20: 1 | C20: 3 | D20: 20400 | E20: 500 | F20: 638.2
A21: Председатель представительного органа муниципального образования | B21: 1 | C21: 3 | D21: 21100 | E21: 0 | F21: 961.6
A22: Выполнение функций органами местного самоуправления | B22: 1 | C22: 3 | D22: 21100 | E22: 500 | F22: 961.6
A23: Погашение кредиторской задолженности учреждений, находящихся в ведении органов местного самоуправления муниципальных образований Иркутской области, по единому социальному налогу, зачисляемому в федеральный бюджет, Фонд социального страхования Российской Федерации, Федеральный фонд обязательного медицинского страхования и территориальные фонды обязательного медицинского страхования | B23: 1 | C23: 3 | D23: 5900000 | E23: 0 | F23: 1.6
A24: Выполнение функций органами местного самоуправления | B24: 1 | C24: 3 | D24: 5900000 | E24: 500 | F24: 1.6
A25: Погашение кредиторской задолженности учреждений, находящихся в ведении органов местного самоуправления муниципальных образований Иркутской области по налоговым платежам, включая пени и штрафы, начисленные на задолженность по налоговым платежам и (или) по пеням и штрафам, начисленным на задолженность по страховым взносам на обязательное пенсионное страхование за период 2002-2009 годов, и (или) реструктурированной задолженности по страховым взносам в государственные внебюджетные фонды, образовавшейся до 1 января 2001 года, и (или) реструктурированной задолженности по единому социальному налогу, зачисляемому в федеральный бюджет, бюджеты государственных внебюджетных фондов, образовавшейся с 1 января 2002 года до 31 декабря 2009 года | B25: 1 | C25: 3 | D25: 5940000 | E25: 0 | F25: 0
A26: Выполнение функций органами местного самоуправления | B26: 1 | C26: 3 | D26: 5940000 | E26: 500 | F26: 0
A27: Функционирование Правительства Российской Федерации, высших исполнительных органов государственной власти субъектов Российской Федерации, местных администраций | B27: 1 | C27: 4 | D27: 0 | E27: 0 | F27: 28868.2
A28: Руководство и управление в сфере установленных функций органов государственной власти субъектов Российской Федерации и органов местного самоуправления | B28: 1 | C28: 4 | D28: 20000 | E28: 0 | F28: 28717.7
A29: Центральный аппарат | B29: 1 | C29: 4 | D29: 20400 | E29: 0 | F29: 28717.7
A30: Выполнение функций органами местного самоуправления | B30: 1 | C30: 4 | D30: 20400 | E30: 500 | F30: 28717.7
A31: Погашение кредиторской задолженности учреждений, находящихся в ведении органов местного самоуправления муниципальных образований Иркутской области, по единому социальному налогу, зачисляемому в федеральный бюджет, Фонд социального страхования Российской Федерации, Федеральный фонд обязательного медицинского страхования и территориальные фонды обязательного медицинского страхования | B31: 1 | C31: 4 | D31: 5900000 | E31: 0 | F31: 100.5
A32: Выполнение функций органами местного самоуправления | B32: 1 | C32: 4 | D32: 5900000 | E32: 500 | F32: 100.5
A33: Погашение кредиторской задолженности учреждений, находящихся в ведении органов местного самоуправления муниципальных образований Иркутской области по налоговым платежам, включая пени и штрафы, начисленные на задолженность по налоговым платежам и (или) по пеням и штрафам, начисленным на задолженность по страховым взносам на обязательное пенсионное страхование за период 2002-2009 годов, и (или) реструктурированной задолженности по страховым взносам в государственные внебюджетные фонды, образовавшейся до 1 января 2001 года, и (или) реструктурированной задолженности по единому социальному налогу, зачисляемому в федеральный бюджет, бюджеты государственных внебюджетных фондов, образовавшейся с 1 января 2002 года до 31 декабря 2009 года | B33: 1 | C33: 4 | D33: 5940000 | E33: 0 | F33: 0
A34: Выполнение функций органами местного самоуправления | B34: 1 | C34: 4 | D34: 5940000 | E34: 500 | F34: 0
A35: Целевые программы муниципальных образований | B35: 1 | C35: 4 | D35: 7950000 | E35: 0 | F35: 50
A36: Долгосрочная целевая программа Черемховского районного муниципального образования "Повышение эффективности бюджетных расходов Черемховского районного муниципального образования на 2012-2013 годы" | B36: 1 | C36: 4 | D36: 7950200 | E36: 0 | F36: 50
A37: Выполнение функций органами местного самоуправления | B37: 1 | C37: 4 | D37: 7950200 | E37: 500 | F37: 50
A38: Судебная система | B38: 1 | C38: 5 | D38: 0 | E38: 0 | F38: 7.5
A39: Руководство и управление в сфере установленных функций | B39: 1 | C39: 5 | D39: 10000 | E39: 0 | F39: 7.5
A40: Составление (изменение и дополнение) списков кандидатов в присяжные заседатели федеральных судов общей юрисдикции в Российской Федерации | B40: 1 | C40: 5 | D40: 14000 | E40: 0 | F40: 7.5
A41: Выполнение функций органами местного самоуправления | B41: 1 | C41: 5 | D41: 14000 | E41: 500 | F41: 7.5
A42: Обеспечение деятельности финансовых, налоговых и таможенных органов и органов финансового (финансово-бюджетного) надзора | B42: 1 | C42: 6 | D42: 0 | E42: 0 | F42: 9208.2
A43: Руководство и управление в сфере установленных функций органов государственной власти субъектов Российской Федерации и органов местного самоуправления | B43: 1 | C43: 6 | D43: 20000 | E43: 0 | F43: 9158.2
A44: Центральный аппарат | B44: 1 | C44: 6 | D44: 20400 | E44: 0 | F44: 8460.3
A45: Выполнение функций органами местного самоуправления | B45: 1 | C45: 6 | D45: 20400 | E45: 500 | F45: 8460.3
A46: Руководитель контрольно-счетной палаты муниципального образования и его заместители | B46: 1 | C46: 6 | D46: 22500 | E46: 0 | F46: 697.9
A47: Выполнение функций органами местного самоуправления | B47: 1 | C47: 6 | D47: 22500 | E47: 500 | F47: 697.9
A48: Погашение кредиторской задолженности учреждений, находящихся в ведении органов местного самоуправления муниципальных образований Иркутской области по налоговым платежам, включая пени и штрафы, начисленные на задолженность по налоговым платежам и (или) по пеням и штрафам, начисленным на задолженность по страховым взносам на обязательное пенсионное страхование за период 2002-2009 годов, и (или) реструктурированной задолженности по страховым взносам в государственные внебюджетные фонды, образовавшейся до 1 января 2001 года, и (или) реструктурированной задолженности по единому социальному налогу, зачисляемому в федеральный бюджет, бюджеты государственных внебюджетных фондов, образовавшейся с 1 января 2002 года до 31 декабря 2009 года | B48: 1 | C48: 6 | D48: 5940000 | E48: 0 | F48: 0
A49: Выполнение функций органами местного самоуправления | B49: 1 | C49: 6 | D49: 5940000 | E49: 500 | F49: 0
A50: Целевые программы муниципальных образований | B50: 1 | C50: 6 | D50: 7950000 | E50: 0 | F50: 50
A51: Долгосрочная целевая программа Черемховского районного муниципального образования "Повышение эффективности бюджетных расходов Черемховского районного муниципального образования на 2012-2013 годы" | B51: 1 | C51: 6 | D51: 7950200 | E51: 0 | F51: 50
A52: Выполнение функций органами местного самоуправления | B52: 1 | C52: 6 | D52: 7950200 | E52: 500 | F52: 50
A53: Резервные фонды | B53: 1 | C53: 11 | D53: 0 | E53: 0 | F53: 0
A54: Резервные фонды | B54: 1 | C54: 11 | D54: 700000 | E54: 0 | F54: 0
A55: Резервные фонды местных администраций | B55: 1 | C55: 11 | D55: 700500 | E55: 0 | F55: 0
A56: Прочие расходы | B56: 1 | C56: 11 | D56: 700500 | E56: 013 | F56: 0
A57: Другие общегосударственные вопросы | B57: 1 | C57: 13 | D57: 0 | E57: 0 | F57: 36108.3
A58: Руководство и управление в сфере установленных функций органов государственной власти субъектов Российской Федерации и органов местного самоуправления | B58: 1 | C58: 13 | D58: 20000 | E58: 0 | F58: 18849
A59: Центральный аппарат | B59: 1 | C59: 13 | D59: 20400 | E59: 0 | F59: 3289.3
A60: Выполнение функций органами местного самоуправления | B60: 1 | C60: 13 | D60: 20400 | E60: 500 | F60: 3289.3
A61: Осуществление областных государственных полномочий по хранению, комплектованию, учету и использованию архивных документов, относящихся к государственной собственности Иркутской области | B61: 1 | C61: 13 | D61: 24000 | E61: 0 | F61: 1027
A62: Выполнение функций органами местного самоуправления | B62: 1 | C62: 13 | D62: 24000 | E62: 500 | F62: 1027
A63: Осуществление областных государственных полномочий по определению персонального состава и обеспечению деятельности административных комиссий | B63: 1 | C63: 13 | D63: 24300 | E63: 0 | F63: 532.9
A64: Выполнение функций органами местного самоуправления | B64: 1 | C64: 13 | D64: 24300 | E64: 500 | F64: 532.9
A65: Осуществление отдельных государственных полномочий в области производства и оборота этилового спирта, алкогольной и спиртосодержащей продукции | B65: 1 | C65: 13 | D65: 24400 | E65: 0 | F65: 376.6
A66: Выполнение функций органами местного самоуправления | B66: 1 | C66: 13 | D66: 24400 | E66: 500 | F66: 376.6
A67: Осуществление отдельных областных государственных полномочий в области охраны труда | B67: 1 | C67: 13 | D67: 24500 | E67: 0 | F67: 532.9
A68: Выполнение функций органами местного самоуправления | B68: 1 | C68: 13 | D68: 24500 | E68: 500 | F68: 532.9
A69: Обеспечение деятельности подведомственных учреждений | B69: 1 | C69: 13 | D69: 29900 | E69: 0 | F69: 13090.3
A70: Выполнение функций казенными учреждениями | B70: 1 | C70: 13 | D70: 29900 | E70: 001 | F70: 13090.3
A71: Реализация государственных функций, связанных с общегосударственным управлением | B71: 1 | C71: 13 | D71: 920000 | E71: 0 | F71: 4306.7
A72: Выполнение других обязательств государства | B72: 1 | C72: 13 | D72: 920300 | E72: 0 | F72: 4306.7
A73: Выполнение функций органами местного самоуправления | B73: 1 | C73: 13 | D73: 920300 | E73: 500 | F73: 4306.7
A74: Учреждения по обеспечению хозяйственного обслуживания | B74: 1 | C74: 13 | D74: 930000 | E74: 0 | F74: 7889.4
A75: Обеспечение деятельности подведомственных учреждений | B75: 1 | C75: 13 | D75: 939900 | E75: 0 | F75: 7889.4
A76: Субсидии некоммерческим организациям | B76: 1 | C76: 13 | D76: 939900 | E76: 019 | F76: 407.8
A77: Субсидии бюджетным учреждениям на финансовое обеспечение муниципального задания на оказание муниципальных услуг (выполнение работ) | B77: 1 | C77: 13 | D77: 939900 | E77: 611 | F77: 7481.2
A78: Субсидии бюджетным учреждениям на иные цели | B78: 1 | C78: 13 | D78: 939900 | E78: 612 | F78: 0.4
A79: Погашение кредиторской задолженности учреждений, находящихся в ведении органов местного самоуправления муниципальных образований Иркутской области, по единому социальному налогу, зачисляемому в федеральный бюджет, Фонд социального страхования Российской Федерации, Федеральный фонд обязательного медицинского страхования и территориальные фонды обязательного медицинского страхования | B79: 1 | C79: 13 | D79: 5900000 | E79: 0 | F79: 33.4
A80: Выполнение функций казенными учреждениями | B80: 1 | C80: 13 | D80: 5900000 | E80: 001 | F80: 32.8
A81: Выполнение функций органами местного самоуправления | B81: 1 | C81: 13 | D81: 5900000 | E81: 500 | F81: 0.6
A82: Погашение кредиторской задолженности учреждений, находящихся в ведении органов местного самоуправления муниципальных образований Иркутской области по налоговым платежам, включая пени и штрафы, начисленные на задолженность по налоговым платежам и (или) по пеням и штрафам, начисленным на задолженность по страховым взносам на обязательное пенсионное страхование за период 2002-2009 годов, и (или) реструктурированной задолженности по страховым взносам в государственные внебюджетные фонды, образовавшейся до 1 января 2001 года, и (или) реструктурированной задолженности по единому социальному налогу, зачисляемому в федеральный бюджет, бюджеты государственных внебюджетных фондов, образовавшейся с 1 января 2002 года до 31 декабря 2009 года | B82: 1 | C82: 13 | D82: 5940000 | E82: 0 | F82: 0
A83: Выполнение функций казенными учреждениями | B83: 1 | C83: 13 | D83: 5940000 | E83: 001 | F83: 0
A84: Выполнение функций органами местного самоуправления | B84: 1 | C84: 13 | D84: 5940000 | E84: 500 | F84: 0
A85: Целевые программы муниципальных образований | B85: 1 | C85: 13 | D85: 7950000 | E85: 0 | F85: 5029.8
A86: Выполнение функций органами местного самоуправления | B86: 1 | C86: 13 | D86: 7950000 | E86: 500 | F86: 2795
A87: Долгосрочная целевая программа Черемховского районного муниципального образования "Повышение эффективности бюджетных расходов Черемховского районного муниципального образования на 2012-2013 годы" | B87: 1 | C87: 13 | D87: 7950200 | E87: 0 | F87: 2234.8
A88: Выполнение функций казенными учреждениями | B88: 1 | C88: 13 | D88: 7950200 | E88: 001 | F88: 2234.8
A89: НАЦИОНАЛЬНАЯ БЕЗОПАСНОСТЬ И ПРАВООХРАНИТЕЛЬНАЯ ДЕЯТЕЛЬНОСТЬ | B89: 3 | C89: 0 | D89: 0 | E89: 0 | F89: 0
A90: Другие вопросы в области национальной безопасности и правоохранительной деятельности | B90: 3 | C90: 14 | D90: 0 | E90: 0 | F90: 0
A91: Реализация других функций, связанных с обеспечением национальной безопасности и правоохранительной деятельности | B91: 3 | C91: 14 | D91: 2470000 | E91: 0 | F91: 0
A92: Выполнение функций органами местного самоуправления | B92: 3 | C92: 14 | D92: 2470000 | E92: 500 | F92: 0
A93: НАЦИОНАЛЬНАЯ ЭКОНОМИКА | B93: 4 | C93: 0 | D93: 0 | E93: 0 | F93: 24637.3
A94: Другие вопросы в области национальной экономики | B94: 4 | C94: 12 | D94: 0 | E94: 0 | F94: 24637.3
A95: Мероприятия в области строительства, архитектуры и градостроительства | B95: 4 | C95: 12 | D95: 3380000 | E95: 0 | F95: 3711.1
A96: Подготовка проектов генеральных планов муниципальных образований Черемховского районного муниципального образования | B96: 4 | C96: 12 | D96: 3380100 | E96: 0 | F96: 930.6
A97: Выполнение функций органами местного самоуправления | B97: 4 | C97: 12 | D97: 3380100 | E97: 500 | F97: 930.6
A98: Подготовка проектов правил землепользования и застройки муниципальных образований Черемховского районного муниципального образования | B98: 4 | C98: 12 | D98: 3380200 | E98: 0 | F98: 2780.5
A99: Выполнение функций органами местного самоуправления | B99: 4 | C99: 12 | D99: 3380200 | E99: 500 | F99: 2780.5
A100: Малое и среднее предпринимательство | B100: 4 | C100: 12 | D100: 3450000 | E100: 0 | F100: 240
A101: Субсидии на государственную поддержку малого и среднего предпринимательства, включая крестьянские (фермерские) хозяйства | B101: 4 | C101: 12 | D101: 3450100 | E101: 0 | F101: 240
A102: Субсидии юридическим лицам | B102: 4 | C102: 12 | D102: 3450100 | E102: 006 | F102: 240
A103: Региональные целевые программы | B103: 4 | C103: 12 | D103: 5220000 | E103: 0 | F103: 19130.2
A104: Долгосрочная целевая программа «Поддержка и развитие малого и среднего предпринимательства в Иркутской области» на 2011-2012 годы | B104: 4 | C104: 12 | D104: 5222400 | E104: 0 | F104: 60
A105: Субсидии юридическим лицам | B105: 4 | C105: 12 | D105: 5222400 | E105: 006 | F105: 60
A106: Долгосрочная целевая программа Иркутской области «Стимулирование жилищного строительства в Иркутской области на 2011-2015 годы» | B106: 4 | C106: 12 | D106: 5225700 | E106: 0 | F106: 19070.2
A107: Подпрограмма "Территориальное планирование муниципальных образований Иркутской области на 2011-2012 годы" | B107: 4 | C107: 12 | D107: 5225701 | E107: 0 | F107: 19070.2
A108: Выполнение функций органами местного самоуправления | B108: 4 | C108: 12 | D108: 5225701 | E108: 500 | F108: 19070.2
A109: Целевые программы муниципальных образований | B109: 4 | C109: 12 | D109: 7950000 | E109: 0 | F109: 1556
A110: Субсидии юридическим лицам | B110: 4 | C110: 12 | D110: 7950000 | E110: 006 | F110: 16
A111: Выполнение функций органами местного самоуправления | B111: 4 | C111: 12 | D111: 7950000 | E111: 500 | F111: 1540
A112: ЖИЛИЩНО-КОММУНАЛЬНОЕ ХОЗЯЙСТВО | B112: 5 | C112: 0 | D112: 0 | E112: 0 | F112: 11372.1
A113: Жилищное хозяйство | B113: 5 | C113: 1 | D113: 0 | E113: 0 | F113: 644.7
A114: Поддержка жилищного хозяйства | B114: 5 | C114: 1 | D114: 3500000 | E114: 0 | F114: 644.7
A115: Капитальный ремонт государственного жилищного фонда субъектов Российской Федерации и муниципального жилищного фонда | B115: 5 | C115: 1 | D115: 3500200 | E115: 0 | F115: 273.9
A116: Субсидии юридическим лицам | B116: 5 | C116: 1 | D116: 3500200 | E116: 006 | F116: 174.9
A117: Выполнение функций органами местного самоуправления | B117: 5 | C117: 1 | D117: 3500200 | E117: 500 | F117: 99
A118: Мероприятия в области жилищного хозяйства | B118: 5 | C118: 1 | D118: 3500300 | E118: 0 | F118: 370.8
A119: Выполнение функций органами местного самоуправления | B119: 5 | C119: 1 | D119: 3500300 | E119: 500 | F119: 370.8
A120: Коммунальное хозяйство | B120: 5 | C120: 2 | D120: 0 | E120: 0 | F120: 4295.5
A121: Резервные фонды | B121: 5 | C121: 2 | D121: 700000 | E121: 0 | F121: 464.6
A122: Резервные фонды исполнительных органов государственной власти субъектов Российской Федерации | B122: 5 | C122: 2 | D122: 700400 | E122: 0 | F122: 164.6
A123: Выполнение функций органами местного самоуправления | B123: 5 | C123: 2 | D123: 700400 | E123: 500 | F123: 164.6
A124: Резервные фонды местных администраций | B124: 5 | C124: 2 | D124: 700500 | E124: 0 | F124: 300
A125: Выполнение функций органами местного самоуправления | B125: 5 | C125: 2 | D125: 700500 | E125: 500 | F125: 300
A126: Поддержка коммунального хозяйства | B126: 5 | C126: 2 | D126: 3510000 | E126: 0 | F126: 3806.8
A127: Мероприятия в области коммунального хозяйства | B127: 5 | C127: 2 | D127: 3510500 | E127: 0 | F127: 3806.8
A128: Выполнение функций органами местного самоуправления | B128: 5 | C128: 2 | D128: 3510500 | E128: 500 | F128: 3806.8
A129: Региональные целевые программы | B129: 5 | C129: 2 | D129: 5220000 | E129: 0 | F129: 24.1
A130: Долгосрочная целевая программа «Энергосбережение и повышение энергетической эффективности на территории Иркутской области на 2011-2015 годы и на период до 2020 года» | B130: 5 | C130: 2 | D130: 5225400 | E130: 0 | F130: 24.1
A131: Иные межбюджетные трансферты | B131: 5 | C131: 2 | D131: 5225400 | E131: 017 | F131: 24.1
A132: Другие вопросы в области жилищно-коммунального хозяйства | B132: 5 | C132: 5 | D132: 0 | E132: 0 | F132: 6431.9
A133: Руководство и управление в сфере установленных функций органов государственной власти субъектов Российской Федерации и органов местного самоуправления | B133: 5 | C133: 5 | D133: 20000 | E133: 0 | F133: 6431.3
A134: Центральный аппарат | B134: 5 | C134: 5 | D134: 20400 | E134: 0 | F134: 4741.4
A135: Выполнение функций органами местного самоуправления | B135: 5 | C135: 5 | D135: 20400 | E135: 500 | F135: 4741.4
A136: Осуществление областных государственных полномочий по предоставлению гражданам субсидий на оплату жилых помещений и коммунальных услуг | B136: 5 | C136: 5 | D136: 24700 | E136: 0 | F136: 729.9
A137: Содержание и обеспечение деятельности муниципальных служащих, осуществляющих областные государственные полномочия по предоставлению гражданам субсидий на оплату жилых помещений и коммунальных услуг | B137: 5 | C137: 5 | D137: 24701 | E137: 0 | F137: 729.9
A138: Выполнение функций органами местного самоуправления | B138: 5 | C138: 5 | D138: 24701 | E138: 500 | F138: 729.9
A139: Обеспечение деятельности подведомственных учреждений | B139: 5 | C139: 5 | D139: 29900 | E139: 0 | F139: 960
A140: Субсидии некоммерческим организациям | B140: 5 | C140: 5 | D140: 29900 | E140: 019 | F140: 48.4
A141: Субсидии бюджетным учреждениям на финансовое обеспечение муниципального задания на оказание муниципальных услуг (выполнение работ) | B141: 5 | C141: 5 | D141: 29900 | E141: 611 | F141: 911.6
A142: Субсидии бюджетным учреждениям на иные цели | B142: 5 | C142: 5 | D142: 29900 | E142: 612 | F142: 0
A143: Погашение кредиторской задолженности учреждений, находящихся в ведении органов местного самоуправления муниципальных образований Иркутской области, по единому социальному налогу, зачисляемому в федеральный бюджет, Фонд социального страхования Российской Федерации, Федеральный фонд обязательного медицинского страхования и территориальные фонды обязательного медицинского страхования | B143: 5 | C143: 5 | D143: 5900000 | E143: 0 | F143: 0.6
A144: Выполнение функций органами местного самоуправления | B144: 5 | C144: 5 | D144: 5900000 | E144: 500 | F144: 0.6
A145: Погашение кредиторской задолженности учреждений, находящихся в ведении органов местного самоуправления муниципальных образований Иркутской области по налоговым платежам, включая пени и штрафы, начисленные на задолженность по налоговым платежам и (или) по пеням и штрафам, начисленным на задолженность по страховым взносам на обязательное пенсионное страхование за период 2002-2009 годов, и (или) реструктурированной задолженности по страховым взносам в государственные внебюджетные фонды, образовавшейся до 1 января 2001 года, и (или) реструктурированной задолженности по единому социальному налогу, зачисляемому в федеральный бюджет, бюджеты государственных внебюджетных фондов, образовавшейся с 1 января 2002 года до 31 декабря 2009 года | B145: 5 | C145: 5 | D145: 5940000 | E145: 0 | F145: 0
A146: Выполнение функций органами местного самоуправления | B146: 5 | C146: 5 | D146: 5940000 | E146: 500 | F146: 0
A147: ОБРАЗОВАНИЕ | B147: 7 | C147: 0 | D147: 0 | E147: 0 | F147: 441656
A148: Дошкольное образование | B148: 7 | C148: 1 | D148: 0 | E148: 0 | F148: 97602.6
A149: Детские дошкольные учреждения | B149: 7 | C149: 1 | D149: 4200000 | E149: 0 | F149: 74226.7
A150: Обеспечение деятельности подведомственных учреждений | B150: 7 | C150: 1 | D150: 4209900 | E150: 0 | F150: 74226.7
A151: Выполнение функций казенными учреждениями | B151: 7 | C151: 1 | D151: 4209900 | E151: 001 | F151: 74226.7
A152: Региональные целевые программы | B152: 7 | C152: 1 | D152: 5220000 | E152: 0 | F152: 7979.3
A153: Областная государственная целевая программа поддержки и развития учреждений дошкольного образования в Иркутской области на 2009-2014 годы | B153: 7 | C153: 1 | D153: 5223700 | E153: 0 | F153: 7857.3
A154: Выполнение функций казенными учреждениями | B154: 7 | C154: 1 | D154: 5223700 | E154: 001 | F154: 7857.3
A155: Долгосрочная целевая программа «Энергосбережение и повышение энергетической эффективности на территории Иркутской области на 2011-2015 годы и на период до 2020 года» | B155: 7 | C155: 1 | D155: 5225400 | E155: 0 | F155: 122
A156: Выполнение функций казенными учреждениями | B156: 7 | C156: 1 | D156: 5225400 | E156: 001 | F156: 122
A157: Выплата заработной платы с начислениями на нее педагогическим работникам муниципальных дошкольных образовательных учреждений и муниципальных учреждений дополнительного образования | B157: 7 | C157: 1 | D157: 5890000 | E157: 0 | F157: 5719
A158: Выполнение функций казенными учреждениями | B158: 7 | C158: 1 | D158: 5890000 | E158: 001 | F158: 5719
A159: Погашение кредиторской задолженности учреждений, находящихся в ведении органов местного самоуправления муниципальных образований Иркутской области, по единому социальному налогу, зачисляемому в федеральный бюджет, Фонд социального страхования Российской Федерации, Федеральный фонд обязательного медицинского страхования и территориальные фонды обязательного медицинского страхования | B159: 7 | C159: 1 | D159: 5900000 | E159: 0 | F159: 591.3
A160: Выполнение функций казенными учреждениями | B160: 7 | C160: 1 | D160: 5900000 | E160: 001 | F160: 591.3
A161: Погашение кредиторской задолженности учреждений, находящихся в ведении органов местного самоуправления муниципальных образований Иркутской области по налоговым платежам, включая пени и штрафы, начисленные на задолженность по налоговым платежам и (или) по пеням и штрафам, начисленным на задолженность по страховым взносам на обязательное пенсионное страхование за период 2002-2009 годов, и (или) реструктурированной задолженности по страховым взносам в государственные внебюджетные фонды, образовавшейся до 1 января 2001 года, и (или) реструктурированной задолженности по единому социальному налогу, зачисляемому в федеральный бюджет, бюджеты государственных внебюджетных фондов, образовавшейся с 1 января 2002 года до 31 декабря 2009 года | B161: 7 | C161: 1 | D161: 5940000 | E161: 0 | F161: 0
A162: Выполнение функций казенными учреждениями | B162: 7 | C162: 1 | D162: 5940000 | E162: 001 | F162: 0
A163: Целевые программы муниципальных образований | B163: 7 | C163: 1 | D163: 7950000 | E163: 0 | F163: 9086.3
A164: Мероприятия в сфере образования | B164: 7 | C164: 1 | D164: 7950000 | E164: 022 | F164: 987
A165: Мероприятия по обеспечению пожарной безопасности | B165: 7 | C165: 1 | D165: 7950000 | E165: 450 | F165: 1000
A166: Мероприятия по повышению энергетической эффективности | B166: 7 | C166: 1 | D166: 7950000 | E166: 451 | F166: 0
A167: Долгосрочная целевая программа Черемховского районного муниципального образования "Повышение эффективности бюджетных расходов Черемховского районного муниципального образования на 2012-2013 годы" | B167: 7 | C167: 1 | D167: 7950200 | E167: 0 | F167: 7099.3
A168: Выполнение функций казенными учреждениями | B168: 7 | C168: 1 | D168: 7950200 | E168: 001 | F168: 7099.3
A169: Общее образование | B169: 7 | C169: 2 | D169: 0 | E169: 0 | F169: 331383.4
A170: Руководство и управление в сфере установленных функций органов государственной власти субъектов Российской Федерации и органов местного самоуправления | B170: 7 | C170: 2 | D170: 20000 | E170: 0 | F170: 236986.7
A171: Обеспечение государственных гарантий прав граждан на получение общедоступного и бесплатного дошкольного, начального общего, основного общего, среднего (полного) общего образования, а также дополнительного образования в общеобразовательных учреждениях | B171: 7 | C171: 2 | D171: 25000 | E171: 0 | F171: 236986.7
A172: Выполнение функций казенными учреждениями | B172: 7 | C172: 2 | D172: 25000 | E172: 001 | F172: 236986.7
A173: Школы - детские сады, школы начальные, неполные средние и средние | B173: 7 | C173: 2 | D173: 4210000 | E173: 0 | F173: 47870.1
A174: Обеспечение деятельности подведомственных учреждений | B174: 7 | C174: 2 | D174: 4219900 | E174: 0 | F174: 47870.1
A175: Выполнение функций казенными учреждениями | B175: 7 | C175: 2 | D175: 4219900 | E175: 001 | F175: 47870.1
A176: Учреждения по внешкольной работе с детьми | B176: 7 | C176: 2 | D176: 4230000 | E176: 0 | F176: 22019.2
A177: Обеспечение деятельности подведомственных учреждений | B177: 7 | C177: 2 | D177: 4239900 | E177: 0 | F177: 22019.2
A178: Выполнение функций казенными учреждениями | B178: 7 | C178: 2 | D178: 4239900 | E178: 001 | F178: 22019.2
A179: Иные безвозмездные и безвозвратные перечисления | B179: 7 | C179: 2 | D179: 5200000 | E179: 0 | F179: 5162.3
A180: Ежемесячное денежное вознаграждение за классное руководство | B180: 7 | C180: 2 | D180: 5200900 | E180: 0 | F180: 5162.3
A181: Выполнение функций казенными учреждениями | B181: 7 | C181: 2 | D181: 5200900 | E181: 001 | F181: 5162.3
A182: Региональные целевые программы | B182: 7 | C182: 2 | D182: 5220000 | E182: 0 | F182: 1414.2
A183: Долгосрочная целевая программа "Социальное развитие села Иркутской области на 2011-2014 годы" | B183: 7 | C183: 2 | D183: 5221800 | E183: 0 | F183: 789
A184: Бюджетные инвестиции | B184: 7 | C184: 2 | D184: 5221800 | E184: 003 | F184: 789
A185: Долгосрочная целевая программа «Модернизация объектов коммунальной инфраструктуры Иркутской области на 2011-2013 годы» | B185: 7 | C185: 2 | D185: 5222000 | E185: 0 | F185: 300
A186: Подпрограмма «Подготовка объектов коммунальной инфраструктуры Иркутской области к отопительному сезону в 2011-2013 годах» | B186: 7 | C186: 2 | D186: 5222001 | E186: 0 | F186: 300
A187: Выполнение функций казенными учреждениями | B187: 7 | C187: 2 | D187: 5222001 | E187: 001 | F187: 300
A188: Долгосрочная целевая программа «Энергосбережение и повышение энергетической эффективности на территории Иркутской области на 2011-2015 годы и на период до 2020 года» | B188: 7 | C188: 2 | D188: 5225400 | E188: 0 | F188: 325.2
A189: Выполнение функций казенными учреждениями | B189: 7 | C189: 2 | D189: 5225400 | E189: 001 | F189: 325.2
A190: Выплата заработной платы с начислениями на нее педагогическим работникам муниципальных дошкольных образовательных учреждений и муниципальных учреждений дополнительного образования | B190: 7 | C190: 2 | D190: 5890000 | E190: 0 | F190: 2276
A191: Выполнение функций казенными учреждениями | B191: 7 | C191: 2 | D191: 5890000 | E191: 001 | F191: 2276
A192: Погашение кредиторской задолженности учреждений, находящихся в ведении органов местного самоуправления муниципальных образований Иркутской области, по единому социальному налогу, зачисляемому в федеральный бюджет, Фонд социального страхования Российской Федерации, Федеральный фонд обязательного медицинского страхования и территориальные фонды обязательного медицинского страхования | B192: 7 | C192: 2 | D192: 5900000 | E192: 0 | F192: 877.4
A193: Выполнение функций казенными учреждениями | B193: 7 | C193: 2 | D193: 5900000 | E193: 001 | F193: 877.4
A194: Погашение кредиторской задолженности учреждений, находящихся в ведении органов местного самоуправления муниципальных образований Иркутской области по налоговым платежам, включая пени и штрафы, начисленные на задолженность по налоговым платежам и (или) по пеням и штрафам, начисленным на задолженность по страховым взносам на обязательное пенсионное страхование за период 2002-2009 годов, и (или) реструктурированной задолженности по страховым взносам в государственные внебюджетные фонды, образовавшейся до 1 января 2001 года, и (или) реструктурированной задолженности по единому социальному налогу, зачисляемому в федеральный бюджет, бюджеты государственных внебюджетных фондов, образовавшейся с 1 января 2002 года до 31 декабря 2009 года | B194: 7 | C194: 2 | D194: 5940000 | E194: 0 | F194: 0
A195: Выполнение функций казенными учреждениями | B195: 7 | C195: 2 | D195: 5940000 | E195: 001 | F195: 0
A196: Целевые программы муниципальных образований | B196: 7 | C196: 2 | D196: 7950000 | E196: 0 | F196: 14777.5
A197: Мероприятия в сфере образования | B197: 7 | C197: 2 | D197: 7950000 | E197: 022 | F197: 1881.6
A198: Мероприятия по обеспечению пожарной безопасности | B198: 7 | C198: 2 | D198: 7950000 | E198: 450 | F198: 700
A199: Мероприятия по повышению энергетической эффективности | B199: 7 | C199: 2 | D199: 7950000 | E199: 451 | F199: 600
A200: Долгосрочная целевая программа Черемховского районного муниципального образования "Повышение эффективности бюджетных расходов Черемховского районного муниципального образования на 2012-2013 годы" | B200: 7 | C200: 2 | D200: 7950200 | E200: 0 | F200: 11595.9
A201: Выполнение функций казенными учреждениями | B201: 7 | C201: 2 | D201: 7950200 | E201: 001 | F201: 11595.9
A202: Молодежная политика и оздоровление детей | B202: 7 | C202: 7 | D202: 0 | E202: 0 | F202: 2615
A203: Организационно-воспитательная работа с молодежью | B203: 7 | C203: 7 | D203: 4310000 | E203: 0 | F203: 106
A204: Проведение мероприятий для детей и молодежи | B204: 7 | C204: 7 | D204: 4310100 | E204: 0 | F204: 106
A205: Выполнение функций органами местного самоуправления | B205: 7 | C205: 7 | D205: 4310100 | E205: 500 | F205: 106
A206: Мероприятия по проведению оздоровительной кампании детей | B206: 7 | C206: 7 | D206: 4320000 | E206: 0 | F206: 24.1
A207: Мероприятия по организации оздоровительной кампании детей | B207: 7 | C207: 7 | D207: 4320100 | E207: 0 | F207: 0
... 231 more rows

Sheet прил6
A7: Распределение бюджетных ассигнований на 2012 год по разделам и подразделам классификации расходов бюджетов Черемховского районного муниципального образования
A9: Наименование статьи | B9: раздел | C9: подраздел | D9: Сумма, тыс. руб.
A10: 1 | B10: 2 | C10: 3 | D10: 4
A11: ОБЩЕГОСУДАРСТВЕННЫЕ ВОПРОСЫ | B11: 01 | D11: =SUM(D12:D17) -> 77828.1
A12: Функционирование высшего должностного лица субъекта Российской Федерации и органа местного самоуправления | B12: 01 | C12: 02 | D12: =прил5!F13 -> 2034.5
A13: Функционирование законодательных (представительных) органов государственной власти и местного самоуправления | B13: 01 | C13: 03 | D13: =прил5!F17 -> 1601.4
A14: Функционирование Правительства Российской Федерации, высших органов исполнительной власти субъектов Российской Федерации, местных администраций | B14: 01 | C14: 04 | D14: =прил5!F27 -> 28868.2
A15: Судебная система | B15: 01 | C15: 05 | D15: =прил5!F38 -> 7.5
A16: Обеспечение деятельности финансовых, налоговых и таможенных органов и органов надзора | B16: 01 | C16: 06 | D16: =прил5!F42 -> 9208.2
A17: Другие общегосударственные вопросы | B17: 01 | C17: 13 | D17: =прил5!F57 -> 36108.3
A18: НАЦИОНАЛЬНАЯ ЭКОНОМИКА | B18: 04 | D18: =D19 -> 24637.3
A19: Другие вопросы в области национальной экономики | B19: 04 | C19: 12 | D19: =прил5!F94 -> 24637.3
A20: ЖИЛИЩНО-КОММУНАЛЬНОЕ ХОЗЯЙСТВО | B20: 05 | D20: =D23+D21+D22 -> 11372.1
A21: Жилищное хозяйство | B21: 05 | C21: 01 | D21: =прил5!F113 -> 644.7
A22: Коммунальное хозяйство | B22: 05 | C22: 02 | D22: =прил5!F120 -> 4295.5
A23: Другие вопросы в области жилищно-коммунального хозяйства | B23: 05 | C23: 05 | D23: =прил5!F132 -> 6431.9
A24: ОБРАЗОВАНИЕ | B24: 07 | D24: =D25+D26+D27+D28 -> 441656
A25: Дошкольное образование | B25: 07 | C25: 01 | D25: =прил5!F148 -> 97602.6
A26: Общее образование | B26: 07 | C26: 02 | D26: =прил5!F169 -> 331383.4
A27: Молодежная политика и оздоровление детей | B27: 07 | C27: 07 | D27: =прил5!F202 -> 2615
A28: Другие вопросы в области образования | B28: 07 | C28: 09 | D28: =прил5!F218 -> 10055
A29: КУЛЬТУРА И КИНЕМАТОГРАФИЯ | B29: 08 | D29: =D30+D31 -> 20585.4
A30: Культура | B30: 08 | C30: 01 | D30: =прил5!F232 -> 19552.2
A31: Другие вопросы в области культуры, кинематографии | B31: 08 | C31: 04 | D31: =прил5!F261 -> 1033.2
A32: ЗДРАВООХРАНЕНИЕ | B32: 09 | D32: =SUM(D33:D37) -> 64270.5
A33: Стационарная помощь | B33: 09 | C33: 01 | D33: =прил5!F266 -> 33926.4
A34: Амбулаторная помощь | B34: 09 | C34: 02 | D34: =прил5!F301 -> 15308
A35: Медицинская помощь в дневных стационарах всех типов | B35: 09 | C35: 03 | D35: =прил5!F332 -> 663.4
A36: Скорая медицинская помощь | B36: 09 | C36: 04 | D36: =прил5!F340 -> 13764.2
A37: Другие вопросы в области здравоохранения | B37: 09 | C37: 09 | D37: =прил5!F356 -> 608.5
A38: СОЦИАЛЬНАЯ ПОЛИТИКА | B38: 10 | D38: =D39+D40+D41+D42 -> 20941.6
A39: Пенсионное обеспечение | B39: 10 | C39: 01 | D39: =прил5!F367 -> 2880.9
A40: Социальное обеспечение населения | B40: 10 | C40: 03 | D40: =прил5!F371 -> 11858.5
A41: Охрана семьи и детства | B41: 10 | C41: 04 | D41: =прил5!F390 -> 5082.7
A42: Другие вопросы в области социальной политики | B42: 10 | C42: 06 | D42: =прил5!F401 -> 1119.5
A43: ФИЗИЧЕСКАЯ КУЛЬТУРА И СПОРТ | B43: 11 | D43: =D44 -> 785
A44: Физическая культура | B44: 11 | C44: 01 | D44: =прил5!F408 -> 785
A45: СРЕДСТВА МАССОВОЙ ИНФОРМАЦИИ | B45: 12 | D45: =D46 -> 2605
A46: Периодическая печать и издательства | B46: 12 | C46: 02 | D46: =прил5!F415 -> 2605
A47: МЕЖБЮДЖЕТНЫЕ ТРАНСФЕРТЫ ОБЩЕГО ХАРАКТЕРА БЮДЖЕТАМ СУБЪЕКТОВ РОССИЙСКОЙ ФЕДЕРАЦИИ И МУНИЦИПАЛЬНЫХ ОБРАЗОВАНИЙ | B47: 14 | D47: =D48+D49 -> 10235
A48: Дотации на выравнивание бюджетной обеспеченности субъектов Российской Федерации и муниципальных образований | B48: 14 | C48: 01 | D48: =прил5!F425 -> 3500
A49: Прочие межбюджетные трансферты общего характера | B49: 14 | C49: 03 | D49: =прил5!F430 -> 6735
A50: ИТОГО | D50: =D11+D18+D20+D24+D29+D32+D38+D43+D45+D47 -> 674916
A53: Начальник Финансового управления | D53: Ю.Н. Гайдук

Sheet прил7
A8: Распределение бюджетных ассигнований на 2012 год по разделам, подразделам, целевым статьям и видам расходов в структуре расходов бюджета Черемховского районного муниципального образования
A10: Наименование показателя | B10: Код | G10: Сумма, тыс. руб.
B11: ГРБС | C11: раздела | D11: подраздела | E11: целевой статьи | F11: вида расходов
A12: 1 | B12: 2 | C12: 3 | D12: 4 | E12: 5 | F12: 6 | G12: 7
A13: МБУЗ Михайловская ЦРБ | B13: 903 | C13: 0 | D13: 0 | E13: 0 | F13: 0 | G13: 7929.5
A14: ЗДРАВООХРАНЕНИЕ | B14: 903 | C14: 9 | D14: 0 | E14: 0 | F14: 0 | G14: 7929.5
A15: Стационарная медицинская помощь | B15: 903 | C15: 9 | D15: 1 | E15: 0 | F15: 0 | G15: 4608.7
A16: Руководство и управление в сфере установленных функций органов государственной власти субъектов Российской Федерации и органов местного самоуправления | B16: 903 | C16: 9 | D16: 1 | E16: 20000 | F16: 0 | G16: 2773
A17: Осуществление отдельных областных государственных полномочий в области охраны здоровья граждан | B17: 903 | C17: 9 | D17: 1 | E17: 25200 | F17: 0 | G17: 2773
A18: Выполнение функций казенными учреждениями | B18: 903 | C18: 9 | D18: 1 | E18: 25200 | F18: 001 | G18: 2773
A19: Реализация региональных программ модернизации здравоохранения субъектов Российской Федерации и программ модернизации федеральных государственных учреждений | B19: 903 | C19: 9 | D19: 1 | E19: 960000 | F19: 0 | G19: 0
A20: Реализация программ модернизации здравоохранения субъектов Российской Федерации в части укрепления материально-технической базы медицинских учреждений | B20: 903 | C20: 9 | D20: 1 | E20: 960100 | F20: 0 | G20: 0
A21: Реализация программ модернизации здравоохранения субъектов Российской Федерации в части укрепления материально-технической базы медицинских учреждений за счет средств бюджета территориального фонда обязательного медицинского страхования граждан Иркутской области | B21: 903 | C21: 9 | D21: 1 | E21: 960101 | F21: 0 | G21: 0
A22: Выполнение функций казенными учреждениями | B22: 903 | C22: 9 | D22: 1 | E22: 960101 | F22: 001 | G22: 0
A23: Больницы, клиники, госпитали, медико-санитарные части | B23: 903 | C23: 9 | D23: 1 | E23: 4700000 | F23: 0 | G23: 1835.7
A24: Обеспечение деятельности подведомственных учреждений | B24: 903 | C24: 9 | D24: 1 | E24: 4709900 | F24: 0 | G24: 1835.7
A25: Выполнение функций казенными учреждениями | B25: 903 | C25: 9 | D25: 1 | E25: 4709900 | F25: 001 | G25: 1835.7
A26: Целевые программы муниципальных образований | B26: 903 | C26: 9 | D26: 1 | E26: 7950000 | F26: 0 | G26: 0
A27: Мероприятия по повышению энергетической эффективности | B27: 903 | C27: 9 | D27: 1 | E27: 7950000 | F27: 451 | G27: 0
A28: Долгосрочная целевая программа Черемховского районного муниципального образования "Повышение эффективности бюджетных расходов Черемховского районного муниципального образования на 2012-2013 годы" | B28: 903 | C28: 9 | D28: 1 | E28: 7950200 | F28: 0 | G28: 0
A29: Выполнение функций казенными учреждениями | B29: 903 | C29: 9 | D29: 1 | E29: 7950200 | F29: 001 | G29: 0
A30: Амбулаторная помощь | B30: 903 | C30: 9 | D30: 2 | E30: 0 | F30: 0 | G30: 1360
A31: Руководство и управление в сфере установленных функций органов государственной власти субъектов Российской Федерации и органов местного самоуправления | B31: 903 | C31: 9 | D31: 2 | E31: 20000 | F31: 0 | G31: 510
A32: Осуществление отдельных областных государственных полномочий в области охраны здоровья граждан | B32: 903 | C32: 9 | D32: 2 | E32: 25200 | F32: 0 | G32: 510
A33: Выполнение функций казенными учреждениями | B33: 903 | C33: 9 | D33: 2 | E33: 25200 | F33: 001 | G33: 510
A34: Реализация региональных программ модернизации здравоохранения субъектов Российской Федерации и программ модернизации федеральных государственных учреждений | B34: 903 | C34: 9 | D34: 2 | E34: 960000 | F34: 0 | G34: 0
A35: Реализация программ модернизации здравоохранения субъектов Российской Федерации в части укрепления материально-технической базы медицинских учреждений | B35: 903 | C35: 9 | D35: 2 | E35: 960100 | F35: 0 | G35: 0
A36: Реализация программ модернизации здравоохранения субъектов Российской Федерации в части укрепления материально-технической базы медицинских учреждений за счет средств бюджета территориального фонда обязательного медицинского страхования граждан Иркутской области | B36: 903 | C36: 9 | D36: 2 | E36: 960101 | F36: 0 | G36: 0
A37: Выполнение функций казенными учреждениями | B37: 903 | C37: 9 | D37: 2 | E37: 960101 | F37: 001 | G37: 0
A38: Поликлиники, амбулатории, диагностические центры | B38: 903 | C38: 9 | D38: 2 | E38: 4710000 | F38: 0 | G38: 227
A39: Обеспечение деятельности подведомственных учреждений | B39: 903 | C39: 9 | D39: 2 | E39: 4719900 | F39: 0 | G39: 227
A40: Выполнение функций казенными учреждениями | B40: 903 | C40: 9 | D40: 2 | E40: 4719900 | F40: 001 | G40: 227
A41: Фельдшерско-акушерские пункты | B41: 903 | C41: 9 | D41: 2 | E41: 4780000 | F41: 0 | G41: 573
A42: Обеспечение деятельности подведомственных учреждений | B42: 903 | C42: 9 | D42: 2 | E42: 4789900 | F42: 0 | G42: 573
A43: Выполнение функций казенными учреждениями | B43: 903 | C43: 9 | D43: 2 | E43: 4789900 | F43: 001 | G43: 573
A44: Иные безвозмездные и безвозвратные перечисления | B44: 903 | C44: 9 | D44: 2 | E44: 5200000 | F44: 0 | G44: 0
A45: Денежные выплаты медицинскому персоналу фельдшерско-акушерских пунктов, врачам, фельдшерам и медицинским сестрам скорой медицинской помощи | B45: 903 | C45: 9 | D45: 2 | E45: 5201800 | F45: 0 | G45: 0
A46: Выполнение функций казенными учреждениями | B46: 903 | C46: 9 | D46: 2 | E46: 5201800 | F46: 001 | G46: 0
A47: Целевые программы муниципальных образований | B47: 903 | C47: 9 | D47: 2 | E47: 7950000 | F47: 0 | G47: 50
A48: Мероприятия в области здравоохранения | B48: 903 | C48: 9 | D48: 2 | E48: 7950000 | F48: 079 | G48: 50
A49: Мероприятия по повышению энергетической эффективности | B49: 903 | C49: 9 | D49: 2 | E49: 7950000 | F49: 451 | G49: 0
A50: Долгосрочная целевая программа Черемховского районного муниципального образования "Повышение эффективности бюджетных расходов Черемховского районного муниципального образования на 2012-2013 годы" | B50: 903 | C50: 9 | D50: 2 | E50: 7950200 | F50: 0 | G50: 0
A51: Выполнение функций казенными учреждениями | B51: 903 | C51: 9 | D51: 2 | E51: 7950200 | F51: 001 | G51: 0
A52: Медицинская помощь в дневных стационарах всех типов | B52: 903 | C52: 9 | D52: 3 | E52: 0 | F52: 0 | G52: 0.6
A53: Больницы, клиники, госпитали, медико-санитарные части | B53: 903 | C53: 9 | D53: 3 | E53: 4700000 | F53: 0 | G53: 0.6
A54: Обеспечение деятельности подведомственных учреждений | B54: 903 | C54: 9 | D54: 3 | E54: 4709900 | F54: 0 | G54: 0.6
A55: Выполнение функций казенными учреждениями | B55: 903 | C55: 9 | D55: 3 | E55: 4709900 | F55: 001 | G55: 0.6
A56: Скорая медицинская помощь | B56: 903 | C56: 9 | D56: 4 | E56: 0 | F56: 0 | G56: 1960.2
A57: Руководство и управление в сфере установленных функций органов государственной власти субъектов Российской Федерации и органов местного самоуправления | B57: 903 | C57: 9 | D57: 4 | E57: 20000 | F57: 0 | G57: 1628.2
A58: Осуществление отдельных областных государственных полномочий в области охраны здоровья граждан | B58: 903 | C58: 9 | D58: 4 | E58: 25200 | F58: 0 | G58: 1628.2
A59: Выполнение функций казенными учреждениями | B59: 903 | C59: 9 | D59: 4 | E59: 25200 | F59: 001 | G59: 1628.2
A60: Больницы, клиники, госпитали, медико-санитарные части | B60: 903 | C60: 9 | D60: 4 | E60: 4700000 | F60: 0 | G60: 332
A61: Обеспечение деятельности подведомственных учреждений | B61: 903 | C61: 9 | D61: 4 | E61: 4709900 | F61: 0 | G61: 332
A62: Выполнение функций казенными учреждениями | B62: 903 | C62: 9 | D62: 4 | E62: 4709900 | F62: 001 | G62: 332
A63: Иные безвозмездные и безвозвратные перечисления | B63: 903 | C63: 9 | D63: 4 | E63: 5200000 | F63: 0 | G63: 0
A64: Денежные выплаты медицинскому персоналу фельдшерско-акушерских пунктов, врачам, фельдшерам и медицинским сестрам скорой медицинской помощи | B64: 903 | C64: 9 | D64: 4 | E64: 5201800 | F64: 0 | G64: 0
A65: Выполнение функций казенными учреждениями | B65: 903 | C65: 9 | D65: 4 | E65: 5201800 | F65: 001 | G65: 0
A66: Отдел по культуре и библиотечному обслуживанию АЧРМО | B66: 904 | C66: 0 | D66: 0 | E66: 0 | F66: 0 | G66: 1033.2
A67: КУЛЬТУРА И КИНЕМАТОГРАФИЯ | B67: 904 | C67: 8 | D67: 0 | E67: 0 | F67: 0 | G67: 1033.2
A68: Другие вопросы в области культуры, кинематографии | B68: 904 | C68: 8 | D68: 4 | E68: 0 | F68: 0 | G68: 1033.2
A69: Руководство и управление в сфере установленных функций органов государственной власти субъектов Российской Федерации и органов местного самоуправления | B69: 904 | C69: 8 | D69: 4 | E69: 20000 | F69: 0 | G69: 1033.2
A70: Центральный аппарат | B70: 904 | C70: 8 | D70: 4 | E70: 20400 | F70: 0 | G70: 1033.2
A71: Выполнение функций органами местного самоуправления | B71: 904 | C71: 8 | D71: 4 | E71: 20400 | F71: 500 | G71: 1033.2
A72: Отдел образования АЧРМО | B72: 907 | C72: 0 | D72: 0 | E72: 0 | F72: 0 | G72: 438903.4
A73: ОБРАЗОВАНИЕ | B73: 907 | C73: 7 | D73: 0 | E73: 0 | F73: 0 | G73: 434758.1
A74: Дошкольное образование | B74: 907 | C74: 7 | D74: 1 | E74: 0 | F74: 0 | G74: 97602.6
A75: Детские дошкольные учреждения | B75: 907 | C75: 7 | D75: 1 | E75: 4200000 | F75: 0 | G75: 74226.7
A76: Обеспечение деятельности подведомственных учреждений | B76: 907 | C76: 7 | D76: 1 | E76: 4209900 | F76: 0 | G76: 74226.7
A77: Выполнение функций казенными учреждениями | B77: 907 | C77: 7 | D77: 1 | E77: 4209900 | F77: 001 | G77: 74226.7
A78: Региональные целевые программы | B78: 907 | C78: 7 | D78: 1 | E78: 5220000 | F78: 0 | G78: 7979.3
A79: Областная государственная целевая программа поддержки и развития учреждений дошкольного образования в Иркутской области на 2009-2014 годы | B79: 907 | C79: 7 | D79: 1 | E79: 5223700 | F79: 0 | G79: 7857.3
A80: Выполнение функций казенными учреждениями | B80: 907 | C80: 7 | D80: 1 | E80: 5223700 | F80: 001 | G80: 7857.3
A81: Долгосрочная целевая программа «Энергосбережение и повышение энергетической эффективности на территории Иркутской области на 2011-2015 годы и на период до 2020 года» | B81: 907 | C81: 7 | D81: 1 | E81: 5225400 | F81: 0 | G81: 122
A82: Выполнение функций казенными учреждениями | B82: 907 | C82: 7 | D82: 1 | E82: 5225400 | F82: 001 | G82: 122
A83: Выплата заработной платы с начислениями на нее педагогическим работникам муниципальных дошкольных образовательных учреждений и муниципальных учреждений дополнительного образования | B83: 907 | C83: 7 | D83: 1 | E83: 5890000 | F83: 0 | G83: 5719
A84: Выполнение функций казенными учреждениями | B84: 907 | C84: 7 | D84: 1 | E84: 5890000 | F84: 001 | G84: 5719
A85: Погашение кредиторской задолженности учреждений, находящихся в ведении органов местного самоуправления муниципальных образований Иркутской области, по единому социальному налогу, зачисляемому в федеральный бюджет, Фонд социального страхования Российской Федерации, Федеральный фонд обязательного медицинского страхования и территориальные фонды обязательного медицинского страхования | B85: 907 | C85: 7 | D85: 1 | E85: 5900000 | F85: 0 | G85: 591.3
A86: Выполнение функций казенными учреждениями | B86: 907 | C86: 7 | D86: 1 | E86: 5900000 | F86: 001 | G86: 591.3
A87: Погашение кредиторской задолженности учреждений, находящихся в ведении органов местного самоуправления муниципальных образований Иркутской области по налоговым платежам, включая пени и штрафы, начисленные на задолженность по налоговым платежам и (или) по пеням и штрафам, начисленным на задолженность по страховым взносам на обязательное пенсионное страхование за период 2002-2009 годов, и (или) реструктурированной задолженности по страховым взносам в государственные внебюджетные фонды, образовавшейся до 1 января 2001 года, и (или) реструктурированной задолженности по единому социальному налогу, зачисляемому в федеральный бюджет, бюджеты государственных внебюджетных фондов, образовавшейся с 1 января 2002 года до 31 декабря 2009 года | B87: 907 | C87: 7 | D87: 1 | E87: 5940000 | F87: 0 | G87: 0
A88: Выполнение функций казенными учреждениями | B88: 907 | C88: 7 | D88: 1 | E88: 5940000 | F88: 001 | G88: 0
A89: Целевые программы муниципальных образований | B89: 907 | C89: 7 | D89: 1 | E89: 7950000 | F89: 0 | G89: 9086.3
A90: Мероприятия в сфере образования | B90: 907 | C90: 7 | D90: 1 | E90: 7950000 | F90: 022 | G90: 987
A91: Мероприятия по обеспечению пожарной безопасности | B91: 907 | C91: 7 | D91: 1 | E91: 7950000 | F91: 450 | G91: 1000
A92: Мероприятия по повышению энергетической эффективности | B92: 907 | C92: 7 | D92: 1 | E92: 7950000 | F92: 451 | G92: 0
A93: Долгосрочная целевая программа Черемховского районного муниципального образования "Повышение эффективности бюджетных расходов Черемховского районного муниципального образования на 2012-2013 годы" | B93: 907 | C93: 7 | D93: 1 | E93: 7950200 | F93: 0 | G93: 7099.3
A94: Выполнение функций казенными учреждениями | B94: 907 | C94: 7 | D94: 1 | E94: 7950200 | F94: 001 | G94: 7099.3
A95: Общее образование | B95: 907 | C95: 7 | D95: 2 | E95: 0 | F95: 0 | G95: 324691.5
A96: Руководство и управление в сфере установленных функций органов государственной власти субъектов Российской Федерации и органов местного самоуправления | B96: 907 | C96: 7 | D96: 2 | E96: 20000 | F96: 0 | G96: 236986.7
A97: Обеспечение государственных гарантий прав граждан на получение общедоступного и бесплатного дошкольного, начального общего, основного общего, среднего (полного) общего образования, а также дополнительного образования в общеобразовательных учреждениях | B97: 907 | C97: 7 | D97: 2 | E97: 25000 | F97: 0 | G97: 236986.7
A98: Выполнение функций казенными учреждениями | B98: 907 | C98: 7 | D98: 2 | E98: 25000 | F98: 001 | G98: 236986.7
A99: Школы - детские сады, школы начальные, неполные средние и средние | B99: 907 | C99: 7 | D99: 2 | E99: 4210000 | F99: 0 | G99: 47870.1
A100: Обеспечение деятельности подведомственных учреждений | B100: 907 | C100: 7 | D100: 2 | E100: 4219900 | F100: 0 | G100: 47870.1
A101: Выполнение функций казенными учреждениями | B101: 907 | C101: 7 | D101: 2 | E101: 4219900 | F101: 001 | G101: 47870.1
A102: Учреждения по внешкольной работе с детьми | B102: 907 | C102: 7 | D102: 2 | E102: 4230000 | F102: 0 | G102: 16199.8
A103: Обеспечение деятельности подведомственных учреждений | B103: 907 | C103: 7 | D103: 2 | E103: 4239900 | F103: 0 | G103: 16199.8
A104: Выполнение функций казенными учреждениями | B104: 907 | C104: 7 | D104: 2 | E104: 4239900 | F104: 001 | G104: 16199.8
A105: Иные безвозмездные и безвозвратные перечисления | B105: 907 | C105: 7 | D105: 2 | E105: 5200000 | F105: 0 | G105: 5162.3
A106: Ежемесячное денежное вознаграждение за классное руководство | B106: 907 | C106: 7 | D106: 2 | E106: 5200900 | F106: 0 | G106: 5162.3
A107: Выполнение функций казенными учреждениями | B107: 907 | C107: 7 | D107: 2 | E107: 5200900 | F107: 001 | G107: 5162.3
A108: Региональные целевые программы | B108: 907 | C108: 7 | D108: 2 | E108: 5220000 | F108: 0 | G108: 1414.2
A109: Долгосрочная целевая программа "Социальное развитие села Иркутской области на 2011-2014 годы" | B109: 907 | C109: 7 | D109: 2 | E109: 5221800 | F109: 0 | G109: 789
A110: Бюджетные инвестиции | B110: 907 | C110: 7 | D110: 2 | E110: 5221800 | F110: 003 | G110: 789
A111: Долгосрочная целевая программа «Модернизация объектов коммунальной инфраструктуры Иркутской области на 2011-2013 годы» | B111: 907 | C111: 7 | D111: 2 | E111: 5222000 | F111: 0 | G111: 300
A112: Подпрограмма «Подготовка объектов коммунальной инфраструктуры Иркутской области к отопительному сезону в 2011-2013 годах» | B112: 907 | C112: 7 | D112: 2 | E112: 5222001 | F112: 0 | G112: 300
A113: Выполнение функций казенными учреждениями | B113: 907 | C113: 7 | D113: 2 | E113: 5222001 | F113: 001 | G113: 300
A114: Долгосрочная целевая программа «Энергосбережение и повышение энергетической эффективности на территории Иркутской области на 2011-2015 годы и на период до 2020 года» | B114: 907 | C114: 7 | D114: 2 | E114: 5225400 | F114: 0 | G114: 325.2
A115: Выполнение функций казенными учреждениями | B115: 907 | C115: 7 | D115: 2 | E115: 5225400 | F115: 001 | G115: 325.2
A116: Выплата заработной платы с начислениями на нее педагогическим работникам муниципальных дошкольных образовательных учреждений и муниципальных учреждений дополнительного образования | B116: 907 | C116: 7 | D116: 2 | E116: 5890000 | F116: 0 | G116: 2276
A117: Выполнение функций казенными учреждениями | B117: 907 | C117: 7 | D117: 2 | E117: 5890000 | F117: 001 | G117: 2276
A118: Погашение кредиторской задолженности учреждений, находящихся в ведении органов местного самоуправления муниципальных образований Иркутской области, по единому социальному налогу, зачисляемому в федеральный бюджет, Фонд социального страхования Российской Федерации, Федеральный фонд обязательного медицинского страхования и территориальные фонды обязательного медицинского страхования | B118: 907 | C118: 7 | D118: 2 | E118: 5900000 | F118: 0 | G118: 877
A119: Выполнение функций казенными учреждениями | B119: 907 | C119: 7 | D119: 2 | E119: 5900000 | F119: 001 | G119: 877
A120: Погашение кредиторской задолженности учреждений, находящихся в ведении органов местного самоуправления муниципальных образований Иркутской области по налоговым платежам, включая пени и штрафы, начисленные на задолженность по налоговым платежам и (или) по пеням и штрафам, начисленным на задолженность по страховым взносам на обязательное пенсионное страхование за период 2002-2009 годов, и (или) реструктурированной задолженности по страховым взносам в государственные внебюджетные фонды, образовавшейся до 1 января 2001 года, и (или) реструктурированной задолженности по единому социальному налогу, зачисляемому в федеральный бюджет, бюджеты государственных внебюджетных фондов, образовавшейся с 1 января 2002 года до 31 декабря 2009 года | B120: 907 | C120: 7 | D120: 2 | E120: 5940000 | F120: 0 | G120: 0
A121: Выполнение функций казенными учреждениями | B121: 907 | C121: 7 | D121: 2 | E121: 5940000 | F121: 001 | G121: 0
A122: Целевые программы муниципальных образований | B122: 907 | C122: 7 | D122: 2 | E122: 7950000 | F122: 0 | G122: 13905.4
A123: Мероприятия в сфере образования | B123: 907 | C123: 7 | D123: 2 | E123: 7950000 | F123: 022 | G123: 1640
A124: Мероприятия по обеспечению пожарной безопасности | B124: 907 | C124: 7 | D124: 2 | E124: 7950000 | F124: 450 | G124: 700
A125: Мероприятия по повышению энергетической эффективности | B125: 907 | C125: 7 | D125: 2 | E125: 7950000 | F125: 451 | G125: 600
A126: Долгосрочная целевая программа Черемховского районного муниципального образования "Повышение эффективности бюджетных расходов Черемховского районного муниципального образования на 2012-2013 годы" | B126: 907 | C126: 7 | D126: 2 | E126: 7950200 | F126: 0 | G126: 10965.4
A127: Выполнение функций казенными учреждениями | B127: 907 | C127: 7 | D127: 2 | E127: 7950200 | F127: 001 | G127: 10965.4
A128: Молодежная политика и оздоровление детей | B128: 907 | C128: 7 | D128: 7 | E128: 0 | F128: 0 | G128: 2409
A129: Мероприятия по проведению оздоровительной кампании детей | B129: 907 | C129: 7 | D129: 7 | E129: 4320000 | F129: 0 | G129: 24.1
A130: Мероприятия по организации оздоровительной кампании детей | B130: 907 | C130: 7 | D130: 7 | E130: 4320100 | F130: 0 | G130: 0
A131: Мероприятия по организации оздоровительной кампании детей за счет средств местного бюджета | B131: 907 | C131: 7 | D131: 7 | E131: 4320102 | F131: 0 | G131: 0
A132: Выполнение функций казенными учреждениями | B132: 907 | C132: 7 | D132: 7 | E132: 4320102 | F132: 001 | G132: 0
A133: Оплата стоимости набора продуктов питания для детей в организованных органами местного самоуправления оздоровительных лагерях с дневным пребыванием детей за счет средств областного бюджета | B133: 907 | C133: 7 | D133: 7 | E133: 4320300 | F133: 0 | G133: 24.1
A134: Оплата стоимости набора продуктов питания для детей в организованных органами местного самоуправления оздоровительных лагерях с дневным пребыванием детей за счет средств местного бюджета | B134: 907 | C134: 7 | D134: 7 | E134: 4320302 | F134: 0 | G134: 24.1
A135: Выполнение функций казенными учреждениями | B135: 907 | C135: 7 | D135: 7 | E135: 4320302 | F135: 001 | G135: 24.1
A136: Региональные целевые программы | B136: 907 | C136: 7 | D136: 7 | E136: 5220000 | F136: 0 | G136: 2384.9
A137: Долгосрочная целевая программа Иркутской области "Организация и обеспечение отдыха и оздоровления детей в Иркутской области на 2012-2014гг." | B137: 907 | C137: 7 | D137: 7 | E137: 5226200 | F137: 0 | G137: 2384.9
A138: Выполнение функций казенными учреждениями | B138: 907 | C138: 7 | D138: 7 | E138: 5226200 | F138: 001 | G138: 2384.9
A139: Другие вопросы в области образования | B139: 907 | C139: 7 | D139: 9 | E139: 0 | F139: 0 | G139: 10055
A140: Руководство и управление в сфере установленных функций органов государственной власти субъектов Российской Федерации и органов местного самоуправления | B140: 907 | C140: 7 | D140: 9 | E140: 20000 | F140: 0 | G140: 3723.5
A141: Центральный аппарат | B141: 907 | C141: 7 | D141: 9 | E141: 20400 | F141: 0 | G141: 3723.5
A142: Выполнение функций органами местного самоуправления | B142: 907 | C142: 7 | D142: 9 | E142: 20400 | F142: 500 | G142: 3723.5
A143: Учебно-методические кабинеты, централизованные бухгалтерии, группы хозяйственного обслуживания, учебные фильмотеки, межшкольные учебно-производственные комбинаты, логопедические пункты | B143: 907 | C143: 7 | D143: 9 | E143: 4520000 | F143: 0 | G143: 6315.7
A144: Обеспечение деятельности подведомственных учреждений | B144: 907 | C144: 7 | D144: 9 | E144: 4529900 | F144: 0 | G144: 6315.7
A145: Субсидии некоммерческим организациям | B145: 907 | C145: 7 | D145: 9 | E145: 4529900 | F145: 019 | G145: 193.6
A146: Субсидии бюджетным учреждениям на финансовое обеспечение муниципального задания на оказание муниципальных услуг (выполнение работ) | B146: 907 | C146: 7 | D146: 9 | E146: 4529900 | F146: 611 | G146: 6011.8
A147: Субсидии бюджетным учреждениям на иные цели | B147: 907 | C147: 7 | D147: 9 | E147: 4529900 | F147: 612 | G147: 110.3
A148: Погашение кредиторской задолженности учреждений, находящихся в ведении органов местного самоуправления муниципальных образований Иркутской области, по единому социальному налогу, зачисляемому в федеральный бюджет, Фонд социального страхования Российской Федерации, Федеральный фонд обязательного медицинского страхования и территориальные фонды обязательного медицинского страхования | B148: 907 | C148: 7 | D148: 9 | E148: 5900000 | F148: 0 | G148: 15.8
A149: Выполнение функций органами местного самоуправления | B149: 907 | C149: 7 | D149: 9 | E149: 5900000 | F149: 500 | G149: 15.8
A150: Погашение кредиторской задолженности учреждений, находящихся в ведении органов местного самоуправления муниципальных образований Иркутской области по налоговым платежам, включая пени и штрафы, начисленные на задолженность по налоговым платежам и (или) по пеням и штрафам, начисленным на задолженность по страховым взносам на обязательное пенсионное страхование за период 2002-2009 годов, и (или) реструктурированной задолженности по страховым взносам в государственные внебюджетные фонды, образовавшейся до 1 января 2001 года, и (или) реструктурированной задолженности по единому социальному налогу, зачисляемому в федеральный бюджет, бюджеты государственных внебюджетных фондов, образовавшейся с 1 января 2002 года до 31 декабря 2009 года | B150: 907 | C150: 7 | D150: 9 | E150: 5940000 | F150: 0 | G150: 0
A151: Выполнение функций органами местного самоуправления | B151: 907 | C151: 7 | D151: 9 | E151: 5940000 | F151: 500 | G151: 0
A152: Социальная политика | B152: 907 | C152: 10 | D152: 0 | E152: 0 | F152: 0 | G152: 4145.3
A153: Социальное обеспечение населения | B153: 907 | C153: 10 | D153: 3 | E153: 0 | F153: 0 | G153: 4145.3
A154: Руководство и управление в сфере установленных функций органов государственной власти субъектов Российской Федерации и органов местного самоуправления | B154: 907 | C154: 10 | D154: 3 | E154: 20000 | F154: 0 | G154: 4145.3
A155: Осуществление отдельных областных государственных полномочий по предоставлению мер социальной поддержки многодетным и малоимущим семьям | B155: 907 | C155: 10 | D155: 3 | E155: 24600 | F155: 0 | G155: 4145.3
A156: Социальные выплаты | B156: 907 | C156: 10 | D156: 3 | E156: 24600 | F156: 005 | G156: 4145.3
A157: Финансовое управление администрации ЧРМО | B157: 910 | C157: 0 | D157: 0 | E157: 0 | F157: 0 | G157: 33557.2
A158: ОБЩЕГОСУДАРСТВЕННЫЕ ВОПРОСЫ | B158: 910 | C158: 1 | D158: 0 | E158: 0 | F158: 0 | G158: 23298.1
A159: Обеспечение деятельности финансовых, налоговых и таможенных органов и органов финансового (финансово-бюджетного) надзора | B159: 910 | C159: 1 | D159: 6 | E159: 0 | F159: 0 | G159: 7895.3
A160: Руководство и управление в сфере установленных функций органов государственной власти субъектов Российской Федерации и органов местного самоуправления | B160: 910 | C160: 1 | D160: 6 | E160: 20000 | F160: 0 | G160: 7845.3
A161: Центральный аппарат | B161: 910 | C161: 1 | D161: 6 | E161: 20400 | F161: 0 | G161: 7845.3
A162: Выполнение функций органами местного самоуправления | B162: 910 | C162: 1 | D162: 6 | E162: 20400 | F162: 500 | G162: 7845.3
A163: Погашение кредиторской задолженности учреждений, находящихся в ведении органов местного самоуправления муниципальных образований Иркутской области по налоговым платежам, включая пени и штрафы, начисленные на задолженность по налоговым платежам и (или) по пеням и штрафам, начисленным на задолженность по страховым взносам на обязательное пенсионное страхование за период 2002-2009 годов, и (или) реструктурированной задолженности по страховым взносам в государственные внебюджетные фонды, образовавшейся до 1 января 2001 года, и (или) реструктурированной задолженности по единому социальному налогу, зачисляемому в федеральный бюджет, бюджеты государственных внебюджетных фондов, образовавшейся с 1 января 2002 года до 31 декабря 2009 года | B163: 910 | C163: 1 | D163: 6 | E163: 5940000 | F163: 0 | G163: 0
A164: Выполнение функций органами местного самоуправления | B164: 910 | C164: 1 | D164: 6 | E164: 5940000 | F164: 500 | G164: 0
A165: Целевые программы муниципальных образований | B165: 910 | C165: 1 | D165: 6 | E165: 7950000 | F165: 0 | G165: 50
A166: Долгосрочная целевая программа Черемховского районного муниципального образования "Повышение эффективности бюджетных расходов Черемховского районного муниципального образования на 2012-2013 годы" | B166: 910 | C166: 1 | D166: 6 | E166: 7950200 | F166: 0 | G166: 50
A167: Выполнение функций органами местного самоуправления | B167: 910 | C167: 1 | D167: 6 | E167: 7950200 | F167: 500 | G167: 50
A168: Другие общегосударственные вопросы | B168: 910 | C168: 1 | D168: 13 | E168: 0 | F168: 0 | G168: 15402.8
A169: Руководство и управление в сфере установленных функций органов государственной власти субъектов Российской Федерации и органов местного самоуправления | B169: 910 | C169: 1 | D169: 13 | E169: 20000 | F169: 0 | G169: 13090.3
A170: Обеспечение деятельности подведомственных учреждений | B170: 910 | C170: 1 | D170: 13 | E170: 29900 | F170: 0 | G170: 13090.3
A171: Выполнение функций казенными учреждениями | B171: 910 | C171: 1 | D171: 13 | E171: 29900 | F171: 001 | G171: 13090.3
A172: Реализация государственных функций, связанных с общегосударственным управлением | B172: 910 | C172: 1 | D172: 13 | E172: 920000 | F172: 0 | G172: 44.9
A173: Выполнение других обязательств государства | B173: 910 | C173: 1 | D173: 13 | E173: 920300 | F173: 0 | G173: 44.9
A174: Выполнение функций органами местного самоуправления | B174: 910 | C174: 1 | D174: 13 | E174: 920300 | F174: 500 | G174: 44.9
A175: Погашение кредиторской задолженности учреждений, находящихся в ведении органов местного самоуправления муниципальных образований Иркутской области, по единому социальному налогу, зачисляемому в федеральный бюджет, Фонд социального страхования Российской Федерации, Федеральный фонд обязательного медицинского страхования и территориальные фонды обязательного медицинского страхования | B175: 910 | C175: 1 | D175: 13 | E175: 5900000 | F175: 0 | G175: 32.8
A176: Выполнение функций казенными учреждениями | B176: 910 | C176: 1 | D176: 13 | E176: 5900000 | F176: 001 | G176: 32.8
A177: Погашение кредиторской задолженности учреждений, находящихся в ведении органов местного самоуправления муниципальных образований Иркутской области по налоговым платежам, включая пени и штрафы, начисленные на задолженность по налоговым платежам и (или) по пеням и штрафам, начисленным на задолженность по страховым взносам на обязательное пенсионное страхование за период 2002-2009 годов, и (или) реструктурированной задолженности по страховым взносам в государственные внебюджетные фонды, образовавшейся до 1 января 2001 года, и (или) реструктурированной задолженности по единому социальному налогу, зачисляемому в федеральный бюджет, бюджеты государственных внебюджетных фондов, образовавшейся с 1 января 2002 года до 31 декабря 2009 года | B177: 910 | C177: 1 | D177: 13 | E177: 5940000 | F177: 0 | G177: 0
A178: Выполнение функций казенными учреждениями | B178: 910 | C178: 1 | D178: 13 | E178: 5940000 | F178: 001 | G178: 0
A179: Целевые программы муниципальных образований | B179: 910 | C179: 1 | D179: 13 | E179: 7950000 | F179: 0 | G179: 2234.8
A180: Долгосрочная целевая программа Черемховского районного муниципального образования "Повышение эффективности бюджетных расходов Черемховского районного муниципального образования на 2012-2013 годы" | B180: 910 | C180: 1 | D180: 13 | E180: 7950200 | F180: 0 | G180: 2234.8
A181: Выполнение функций казенными учреждениями | B181: 910 | C181: 1 | D181: 13 | E181: 7950200 | F181: 001 | G181: 2234.8
A182: ЖИЛИЩНО-КОММУНАЛЬНОЕ ХОЗЯЙСТВО | B182: 910 | C182: 5 | D182: 0 | E182: 0 | F182: 0 | G182: 24.1
A183: Коммунальное хозяйство | B183: 910 | C183: 5 | D183: 2 | E183: 0 | F183: 0 | G183: 24.1
A184: Региональные целевые программы | B184: 910 | C184: 5 | D184: 2 | E184: 5220000 | F184: 0 | G184: 24.1
A185: Долгосрочная целевая программа «Энергосбережение и повышение энергетической эффективности на территории Иркутской области на 2011-2015 годы и на период до 2020 года» | B185: 910 | C185: 5 | D185: 2 | E185: 5225400 | F185: 0 | G185: 24.1
A186: Иные межбюджетные трансферты | B186: 910 | C186: 5 | D186: 2 | E186: 5225400 | F186: 017 | G186: 24.1
A187: КУЛЬТУРА И КИНЕМАТОГРАФИЯ | B187: 910 | C187: 8 | D187: 0 | E187: 0 | F187: 0 | G187: 0
A188: Культура | B188: 910 | C188: 8 | D188: 1 | E188: 0 | F188: 0 | G188: 0
A189: Региональные целевые программы | B189: 910 | C189: 8 | D189: 1 | E189: 5220000 | F189: 0 | G189: 0
A190: Долгосрочная целевая программа "Социальное развитие села Иркутской области на 2011-2014 годы" | B190: 910 | C190: 8 | D190: 1 | E190: 5221800 | F190: 0 | G190: 0
A191: Иные межбюджетные трансферты | B191: 910 | C191: 8 | D191: 1 | E191: 5221800 | F191: 017 | G191: 0
A192: ОБСЛУЖИВАНИЕ ГОСУДАРСТВЕННОГО И МУНИЦИПАЛЬНОГО ДОЛГА | B192: 910 | C192: 13 | D192: 0 | E192: 0 | F192: 0 | G192: 0
A193: Обслуживание внутреннего государственного и муниципального долга | B193: 910 | C193: 13 | D193: 1 | E193: 0 | F193: 0 | G193: 0
A194: Процентные платежи по долговым обязательствам | B194: 910 | C194: 13 | D194: 1 | E194: 650000 | F194: 0 | G194: 0
A195: Процентные платежи по муниципальному долгу | B195: 910 | C195: 13 | D195: 1 | E195: 650300 | F195: 0 | G195: 0
A196: Прочие расходы | B196: 910 | C196: 13 | D196: 1 | E196: 650300 | F196: 013 | G196: 0
A197: МЕЖБЮДЖЕТНЫЕ ТРАНСФЕРТЫ ОБЩЕГО ХАРАКТЕРА БЮДЖЕТАМ СУБЪЕКТОВ РОССИЙСКОЙ ФЕДЕРАЦИИ И МУНИЦИПАЛЬНЫХ ОБРАЗОВАНИЙ | B197: 910 | C197: 14 | D197: 0 | E197: 0 | F197: 0 | G197: 10235
A198: Дотации на выравнивание бюджетной обеспеченности субъектов Российской Федерации и муниципальных образований | B198: 910 | C198: 14 | D198: 1 | E198: 0 | F198: 0 | G198: 3500
A199: Выравнивание бюджетной обеспечености | B199: 910 | C199: 14 | D199: 1 | E199: 5160000 | F199: 0 | G199: 3500
A200: Выравнивание бюджетной обеспеченности | B200: 910 | C200: 14 | D200: 1 | E200: 5160100 | F200: 0 | G200: 3500
A201: Выравнивание бюджетной обеспеченности поселений из районного фонда финансовой поддержки | B201: 910 | C201: 14 | D201: 1 | E201: 5160130 | F201: 0 | G201: 3500
A202: Фонд финансовой поддержки | B202: 910 | C202: 14 | D202: 1 | E202: 5160130 | F202: 008 | G202: 3500
A203: Прочие межбюджетные трансферты общего характера бюджетам субъектов Российской Федерации и муниципальных образований | B203: 910 | C203: 14 | D203: 3 | E203: 0 | F203: 0 | G203: 6735
A204: Межбюджетные трансферты | B204: 910 | C204: 14 | D204: 3 | E204: 5210000 | F204: 0 | G204: 92
A205: Межбюджетные трансферты бюджетам муниципальных районов из бюджетов поселений и межбюджетные трансферты бюджетам поселений из бюджетов муниципальных районов на осуществление части полномочий по решению вопросов местного значения в соответствии с заключенными соглашениями | B205: 910 | C205: 14 | D205: 3 | E205: 5210600 | F205: 0 | G205: 92
A206: Иные межбюджетные трансферты | B206: 910 | C206: 14 | D206: 3 | E206: 5210600 | F206: 017 | G206: 92
A207: Целевые программы муниципальных образований | B207: 910 | C207: 14 | D207: 3 | E207: 7950000 | F207: 0 | G207: 6643
A208: Долгосрочная целевая программа Черемховского районного муниципального образования "Повышение эффективности бюджетных расходов Черемховского районного муниципального образования на 2012-2013 годы" | B208: 910 | C208: 14 | D208: 3 | E208: 7950200 | F208: 0 | G208: 6643
... 383 more rows

Sheet прил8
A7: Программы, запланированные в бюджете Черемховского районного муниципального образования на 2012 год
G8: (тыс. рублей)
A9: № п/п | B9: Наименование программы | C9: Исполнители | D9: Бюджетная классификация | H9: сумма
D10: ГРБС | E10: РзПр | F10: ЦСР | G10: ВР
A11: 1 | B11: 2 | C11: 3 | D11: 4 | E11: 5 | F11: 6 | G11: 7 | H11: 8
A12: 1 | B12: Вакцинопрофилактика на 2012-2014 гг. | C12: МБУЗ Михайловская ЦРБ | D12: 903 | E12: 0901 | F12: 7950000 | G12: 079 | H12: 50
A13: 2 | B13: Неотложные меры по борьбе с туберкулезом на 2012-2014 гг. | C13: Администрация ЧРМО (в рамках финансового обеспечения муниципального задания МБУЗ Михайловская ЦРБ) | D13: 917 | E13: 0901 | F13: 7950300 | G13: 611 | H13: 50
A14: 3 | B14: Сахарный диабет на 2012-2014 гг. | D14: 917 | E14: 0901 | F14: 7950400 | G14: 611 | H14: 150
A15: 4 | B15: Анти-ВИЧ/СПИД на 2012-2014 гг. | D15: 917 | E15: 0901 | F15: 7950500 | G15: 611 | H15: 50
A16: 5 | B16: Привлечение врачебных кадров в здравоохранение района на 2012-2014 гг. | D16: 917 | E16: 0909 | F16: 7950900 | G16: 612 | H16: 600
A17: 6 | B17: Развитие культуры в Черемховском районном муниципальном образовании на период 2012-2016 гг. | C17: РМУК Черемховская межпоселенческая центральная библиотека | D17: 921 | E17: 0801 | F17: 7950000 | G17: 023 | H17: 307.9
C18: МОУ ДОД "ДШИ поселка Михайловка" | D18: 922 | E18: 0802 | F18: 7950000 | G18: 022 | H18: 241.6
C19: МУК "Районный историко-краеведческий музей" | D19: 920 | E19: 0801 | F19: 7950000 | G19: 023 | H19: 78
C20: МУК "Межпоселенческий культурный центр АЧРМО" | D20: 919 | E20: 0801 | F20: 7950000 | G20: 023 | H20: 612.4
A21: 7 | B21: Ветхие школы Черемховского района на 2011-2013 гг. | C21: Отдел образования АЧРМО | D21: 907 | E21: 0702 | F21: 7950000 | G21: 022 | H21: 490
A22: 8 | B22: Совершенствование дошкольного образования Черемховского района на 2011-2014 гг. | D22: 907 | E22: 0701 | F22: 7950000 | G22: 022 | H22: 350
A23: 9 | B23: Совершенствование организации питания в образовательных учреждениях Черемховского района на 2011-2013 гг. | D23: 907 | E23: 0702 | F23: 7950000 | G23: 022 | H23: 1150
A24: 10 | B24: Развитие дошкольного образования на 2011-2014 гг. | D24: 907 | E24: 0701 | F24: 7950000 | G24: 022 | H24: 637
A25: 11 | B25: "Безопасность образовательных учреждений" 2010-2014гг. | D25: 907 | E25: 0701, 0702 | F25: 7950000 | G25: 450 | H25: 1700
A26: 12 | B26: Инвентаризация муниципальных объектов недвижимости Черемховского районного муниципального образования на 2012-2014 годы | C26: КУМИ | D26: 913 | E26: 0113, 0412 | F26: 7950000 | G26: 500 | H26: 4100
A27: 13 | B27: Молодым семьям доступное жилье на 2005-2019гг. | C27: Администрация ЧРМО | D27: 917 | E27: 1003 | F27: 7950000 | G27: 500 | H27: 124.5
A28: 14 | B28: Комплексные меры профилактики злоупотребления наркотическими средствами, психотропними веществами на 2011-2013 гг. | D28: 917 | E28: 0707 | F28: 7950000 | G28: 500 | H28: 10
A29: 15 | B29: Молодежная политика в Черемховском районном муниципальном образовании на 2010-2012 | D29: 917 | E29: 0707 | F29: 7950000 | G29: 500 | H29: 90
A30: 16 | B30: Развитие физической культуры, спорта и туризма в Черемховском районном муниципальном образовании на 2011-2013гг. | D30: 917 | E30: 1101 | F30: 7950000 | G30: 500 | H30: 299.1
A31: 17 | B31: Поддержка и развитие малого и среднего предпринимательства в Черемховском районе на 2011-2012 гг. | D31: 917 | E31: 0412 | F31: 7950000 | G31: 500 | H31: 116
A32: 18 | B32: Поддержка, проводимых мероприятий, посвященных Дням славы, памятным датам России и работе с ветеранами в Черемховском районе на 2012 год | D32: 917 | E32: 0405 | F32: 7950000 | G32: 500 | H32: 100
A33: 19 | B33: Улучшение условий и охраны труда в Черемховском районе на 2011-2013 гг | D33: 917 | E33: 0113 | F33: 7950000 | G33: 500 | H33: 15
A34: 20 | B34: Комплексная программа профилактики правонарушений Черемховского районного муниципального образования на 2009-2012 гг. | D34: 917 | E34: 0113 | F34: 7950000 | G34: 500 | H34: 40
A35: 21 | B35: Повышение безопасности дорожного движения в Черемховском районе в 2007-2012 гг. | C35: Управление ЖКХ | D35: 918 | E35: 0113 | F35: 7950000 | G35: 500 | H35: 80
A36: 22 | B36: Программа повышения энергетической эффективности Черемховского районного муниципального образования на 2010-2015 гг | C36: Отдел образования АЧРМО | D36: 907 | E36: 0701, 0702 | F36: 7950000 | G36: 451 | H36: 600
C37: РМУК Черемховская межпоселенческая центральная библиотека | D37: 921 | E37: 0801 | F37: 7950000 | G37: 451 | H37: 100
A38: 23 | B38: Повышение эффективности бюджетных расходов Черемховского районного муниципального образования на 2012-2013 годы | C38: Финансовое управление АЧРМО | D38: 910 | E38: 0106, 0113 | F38: 7950200 | G38: 500, 001 | H38: 2284.8
C39: Администрация ЧРМО | D39: 917 | E39: 0104 | F39: 7950200 | G39: 500 | H39: 50
C40: Отдел образования АЧРМО | D40: 907 | E40: 0701, 0702 | F40: 7950200 | G40: 001 | H40: 18064.7
C41: Администрация ЧРМО (в рамках финансового обеспечения муниципального задания МБУЗ Михайловская ЦРБ) | D41: 917 | E41: 0901, 0902 | F41: 7950200 | G41: 611 | H41: 4402.2
C42: МКУК "Межпоселенческий культурный центр АЧРМО" | D42: 919 | E42: 0801 | F42: 7950200 | G42: 001 | H42: 551.4
C43: МКУК "Районный историко-краеведческий музей" | D43: 920 | E43: 0801 | F43: 7950200 | G43: 001 | H43: 188.6
C44: МКУК "Межпоселенческая библиотека Черемховского района" | D44: 921 | E44: 0801 | F44: 7950200 | G44: 001 | H44: 549.8
C45: МКОУ ДОД "ДШИ поселка Михайловка" | D45: 922 | E45: 0702 | F45: 7950200 | G45: 001 | H45: 630.5
C46: Муниципальные образования района, Всего, в том числе | H46: =SUM(H47:H64) -> 6643
C47: Алехинское сельское поселение | D47: 910 | E47: 1403 | F47: 7950200 | G47: 017 | H47: 540
C48: Бельское сельское поселение | D48: 910 | E48: 1403 | F48: 7950200 | G48: 017 | H48: 155
C49: Булайское сельское поселение | D49: 910 | E49: 1403 | F49: 7950200 | G49: 017 | H49: 390
C50: Голуметское сельское поселение | D50: 910 | E50: 1403 | F50: 7950200 | G50: 017 | H50: 370
C51: Зерновское сельское поселение | D51: 910 | E51: 1403 | F51: 7950200 | G51: 017 | H51: 459
C52: Каменно-Ангарское сельское поселение | D52: 910 | E52: 1403 | F52: 7950200 | G52: 017 | H52: 285
C53: Лоховское сельское поселение | D53: 910 | E53: 1403 | F53: 7950200 | G53: 017 | H53: 474
C54: Михайловское городское поселение | D54: 910 | E54: 1403 | F54: 7950200 | G54: 017 | H54: 468
C55: Нижнеиретское сельское поселение | D55: 910 | E55: 1403 | F55: 7950200 | G55: 017 | H55: 280
C56: Новогромовское сельское поселение | D56: 910 | E56: 1403 | F56: 7950200 | G56: 017 | H56: 293
C57: Новостроевское сельское поселение | D57: 910 | E57: 1403 | F57: 7950200 | G57: 017 | H57: 313
C58: Онотское сельское поселение | D58: 910 | E58: 1403 | F58: 7950200 | G58: 017 | H58: 288
C59: Парфеновское сельское поселение | D59: 910 | E59: 1403 | F59: 7950200 | G59: 017 | H59: 355
C60: Саянское сельское поселение | D60: 910 | E60: 1403 | F60: 7950200 | G60: 017 | H60: 471
C61: Тальниковское сельское поселение | D61: 910 | E61: 1403 | F61: 7950200 | G61: 017 | H61: 279
C62: Тунгусское сельское поселение | D62: 910 | E62: 1403 | F62: 7950200 | G62: 017 | H62: 330
C63: Узколугское сельское поселение | D63: 910 | E63: 1403 | F63: 7950200 | G63: 017 | H63: 544
C64: Черемховское сельское поселение | D64: 910 | E64: 1403 | F64: 7950200 | G64: 017 | H64: 349
B65: Всего: | C65: =SUM(H12:H46) -> 45506.5
A69: Начальник финансового управления | H69: Ю.Н. Гайдук

Sheet прил12
A7: Программа муниципальных внутренних заимствований Черемховского районного муниципального образования на 2012 год
G8: (тыс.рублей)
A9: Виды долговых обязательств | B9: Объем государственного долга на 1 января 2012 года | C9: Объем привлечения в 2012 году | D9: Объем погашения в 2012 году | E9: Верхний предел государственного долга на 1 января 2013 года | F9: Списание кредитов в 2012г | G9: Верхний предел долга на 1 января 2013 года
A10: Объем заимствований, всего | B10: =SUM(B12:B13) -> 42196.06222 | C10: =SUM(C12:C13) -> 4250.6 | D10: =SUM(D12:D13) -> 421.96062 | E10: =SUM(E12:E13) -> 0 | G10: =SUM(G12:G13) -> 4250.6
A11: в том числе:
A12: 2. Кредиты кредитных организаций в валюте Российской Федерации сроком до 3-х лет | C12: 4250.6 | G12: =B12+C12-D12 -> 4250.6
A13: 3. Бюджетные кредиты от других бюджетов бюджетной системы Российской Федерации | B13: 42196.06222 | D13: 421.96062 | F13: 41774.1016 | G13: =B13+C13-D13-F13 -> 0
A16: Начальник финансового управления | D16: Ю.Н. Гайдук

Sheet прил13
A8: Источники внутреннего финансирования дефицита бюджета Черемховского районного муниципального образования на 2012 год
C10: (тыс.рублей)
A11: Наименование | B11: Код | C11: План год
A12: Источники внутреннего финансирования дефицита бюджета | B12: 000 01 00 00 00 00 0000 000 | C12: 20217.5
A13: Источники внутреннего финансирования дефицита бюджета | B13: 000 01 00 00 00 00 0000 000 | C13: =C14+C19 -> 3828.63938
A14: Кредиты кредитных организаций в валюте Российской Федерации | B14: 910 01 02 00 00 00 0000 000 | C14: =C15-C17 -> 4250.6
A15: Получение кредитов от кредитных организаций в валюте Российской Федерации | B15: 910 01 02 00 00 00 0000 700 | C15: =C16 -> 4250.6
A16: Кредиты, полученные от кредитных организаций бюджетами муниципальных районов в валюте Российской Федерации | B16: 910 01 02 00 00 05 0000 710 | C16: 4250.6
A17: Погашение кредитов, предоставленных кредитными организациями в валюте Российской Федерации | B17: 910 01 02 00 00 00 0000 800 | C17: =C18 -> 0
A18: Погашение бюджетами муниципальных районов кредитов от кредитных организаций в валюте Российской Федерации | B18: 910 01 02 00 00 05 0000 810 | C18: 0
A19: Бюджетные кредиты от других бюджетов бюджетной системы Российской Федерации | B19: 910 01 03 00 00 00 0000 000 | C19: -421.96062
A20: Получение бюджетных кредитов от других бюджетов бюджетной системы Российской Федерации в валюте Российской Федерации | B20: 910 01 03 00 00 00 0000 700 | C20: =C21 -> 0
A21: Получение кредитов от других бюджетов бюджетной системы Российской Федерации бюджетами муниципальных районов в валюте Российской Федерации | B21: 910 01 03 00 00 05 0000 710 | C21: 0
A22: Погашение бюджетных кредитов, полученных от других бюджетов бюджетной системы Российской Федерации в валюте Российской Федерации | B22: 910 01 03 00 00 00 0000 800 | C22: =C23 -> -421.96062
A23: Погашение бюджетами муниципальных районов кредитов от других бюджетов бюджетной системы Российской Федерации в валюте Российской Федерации | B23: 910 01 03 00 00 05 0000 810 | C23: -421.96062
A24: Изменение остатков средств на счетах по учету средств бюджетов | B24: 000 01 05 00 00 00 0000 000 | C24: =C25+C29 -> 16388.9
A25: Увеличение остатков средств бюджетов | B25: 000 01 05 00 00 00 0000 500 | C25: =C26 -> -658949.1
A26: Увеличение прочих остатков средств бюджетов | B26: 000 01 05 02 00 00 0000 500 | C26: =C27 -> -658949.1
A27: Увеличение прочих остатков денежных средств бюджетов | B27: 000 01 05 02 01 00 0000 510 | C27: =C28 -> -658949.1
A28: Увеличение прочих остатков денежных средств бюджетов муниципальных районов | B28: 000 01 05 02 01 05 0000 510 | C28: -658949.1
A29: Уменьшение остатков средств бюджетов | B29: 000 01 05 00 00 00 0000 600 | C29: =C30 -> 675338
A30: Уменьшение прочих остатков средств бюджетов | B30: 000 01 05 02 00 00 0000 600 | C30: =C31 -> 675338
A31: Уменьшение прочих остатков денежных средств бюджетов | B31: 000 01 05 02 01 00 0000 610 | C31: =C32 -> 675338
A32: Уменьшение прочих остатков денежных средств бюджетов муниципальных районов | B32: 000 01 05 02 01 05 0000 610 | C32: 675338
A35: Начальник финансового управления | C35: Ю.Н. Гайдук | F35: =[1]прил.1!D111-[1]прил5!F393 -> -20971.418
